Cogmind - Beta 9.6 @@@ ROGUE MODE // 2020.09.08 @ 13:19:51 // Winter2019/RPGLIKE Player: Hermelin Result: Destroyed by H-88 Terminator with KE Penetrator Performance ------------- Evolutions (6) 3000 Regions Visited (31) 6200 Robots Destroyed (471) 2355 Value Destroyed (19198) 19198 Prototype IDs (111) 2220 Alien Tech Used (0) 0 Bonus (11918) 11918 TOTAL SCORE: 44891 Bonus ------- High Alert Combat Kills 3478 Follower Combat Kills 1926 Network Hubs Disabled 600 Aligned with FarCom 300 Met Data Miner 300 Met Imprinter 300 Destroyed Z-Imprinter 1000 Triggered Deep Caves Wall 1000 Exposed GOLEM Chamber 5500 Met Warlord at Base 500 MAIN.C Attacked Warlord 500 Warlord Defense Kill 312 A7 Reached Mainframe 300 Met R17 at Cetus 500 Friendly Fire -4598 Cogmind --------- Core Integrity 0/1000 Matter 300/300 Energy 1624/1700 System Corruption 0% Temperature Cool (2) Movement Walking (45) Location -4/Warlord Parts ------- > --- POWER (2) -------- Vortex Chain Reactor > --- PROPULSION (2) --- Potential Leg Potential Leg > --- UTILITY (14) ----- Advanced Power Amplifier Advanced Coolant Injector Assembled Biocell Array Assembled Suspension Frame Assembled Combat Suite Advanced Core Analyzer Experimental Armor Integrity Analyzer Advanced Particle Charger Advanced Phase Shifter Assembled Alloy Armor Beam Splitter Advanced Shield Generator Ghost Barrier > --- WEAPON (3) ------- Force Rifle Advanced Variable Charge Gun > --- INVENTORY (6) ---- Advanced Weapon Cycler Improved Powered Armor Medium Regenerative Plating System Backup Module GOLEM Unit Peak State ------------ > --- POWER ------------ Vortex Chain Reactor > --- PROPULSION ------- Potential Leg Potential Leg > --- UTILITY ---------- Advanced Power Amplifier Advanced Coolant Injector Assembled Biocell Array Assembled Suspension Frame Assembled Combat Suite Advanced Core Analyzer Experimental Armor Integrity Analyzer Advanced Particle Charger Advanced Phase Shifter Assembled Alloy Armor Improved Powered Armor Beam Splitter Advanced Shield Generator Ghost Barrier > --- WEAPON ----------- Force Rifle Force Rifle Advanced Variable Charge Gun > --- INVENTORY -------- Advanced Weapon Cycler Medium Regenerative Plating System Backup Module GOLEM Unit [Rating: 175] Favorites ----------- Power Zionite Light DM Reactor Engine Improved Deuterium Engine Power Core Micro Fission Core Reactor Zionite Light DM Reactor Propulsion Potential Leg Treads Armored Heavy Treads Leg Potential Leg Hover Unit Hover Unit Flight Unit Flight Unit Utility Improved Shield Generator Device Improved Shield Generator Storage Assembled Biocell Array Processor Makeshift Salvage Targeting Computer Hackware Hacking Suite Protection Improved Powered Armor Weapon Force Rifle Energy Gun Force Rifle Energy Cannon Cooled Particle Cannon Ballistic Gun Coil Gun Ballistic Cannon Bore Cannon Launcher Rocket Array Special Melee Weapon Datajack Build | -11 -10 -10 -10 -9 -8 -7 -7 -7 -7 -7 -7 -6 -6 -6 -6 -6 -6 -6 -6 -5 -5 -5 -5 -5 -5 -5 -5 -4 -4 -4 -4 ------- Run | Scr Mat Min Exi Min Mat Fac Was Fac Low Low Dat Pro Fac Was Fac Low Low Zio Dee Pro Fac Was Fac Ext Cet Arc Hub Fac Upp Upp War Slots Evolved 17 | 3 1 . . 3 1 2 . . 1 . 1 1 . . 1 . 1 . . . 1 . . . . . . . . 1 . Power 1 | . . . . 1 . . . . . . . . . . . . . . . . . . . . . . . . . . . Propulsion 1 | 1 . . . . . . . . . . . . . . . . . . . . . . . . . . . . . . . Utility 13 | 1 1 . . 2 1 1 . . 1 . 1 1 . . 1 . 1 . . . 1 . . . . . . . . 1 . Weapon 2 | 1 . . . . . 1 . . . . . . . . . . . . . . . . . . . . . . . . . Parts Attached 209 | 7 9 1 3 5 8 10 2 14 1 4 1 6 . 1 12 2 7 7 45 . 11 . 12 9 12 . 4 5 2 . 9 Power 18 | 1 1 . . 1 . 1 . 2 . 1 . . . . 3 . . . 2 . 3 . 1 . 1 . . . . . 1 Engine 6 | 1 . . . . . 1 . 1 . . . . . . 2 . . . . . 1 . . . . . . . . . . Core 5 | . 1 . . 1 . . . 1 . 1 . . . . . . . . . . 1 . . . . . . . . . . Reactor 7 | . . . . . . . . . . . . . . . 1 . . . 2 . 1 . 1 . 1 . . . . . 1 Propulsion 24 | 2 4 1 2 . . . . . . . . . . . 1 . 1 . 8 . . . . . 3 . . . . . 2 Treads 5 | . . 1 . . . . . . . . . . . . . . 1 . 2 . . . . . 1 . . . . . . Leg 13 | 2 . . 2 . . . . . . . . . . . 1 . . . 4 . . . . . 2 . . . . . 2 Wheel . | . . . . . . . . . . . . . . . . . . . . . . . . . . . . . . . . Hover 4 | . 2 . . . . . . . . . . . . . . . . . 2 . . . . . . . . . . . . Flight 2 | . 2 . . . . . . . . . . . . . . . . . . . . . . . . . . . . . . Utility 120 | 2 4 . . 2 6 4 2 7 1 2 1 6 . . 6 . 6 4 26 . 4 . 9 9 6 . 2 5 2 . 4 Device 73 | 1 . . . 1 1 1 1 3 1 1 . 4 . . 4 . 4 2 20 . 3 . 5 7 4 . 2 5 1 . 2 Storage 3 | . . . . . . . . . . . . 1 . . . . . . 1 . 1 . . . . . . . . . . Processor 10 | 1 . . . . 1 2 . . . . . . . . 1 . 1 1 . . . . 1 . . . . . 1 . 1 Hackware 4 | . 1 . . . 1 . 1 . . . . . . . . . . . . . . . . . . . . . . . 1 Protection 30 | . 3 . . 1 3 1 . 4 . 1 1 1 . . 1 . 1 1 5 . . . 3 2 2 . . . . . . Artifact . | . . . . . . . . . . . . . . . . . . . . . . . . . . . . . . . . Weapon 47 | 2 . . 1 2 2 5 . 5 . 1 . . . 1 2 2 . 3 9 . 4 . 2 . 2 . 2 . . . 2 Energy Gun 20 | 1 . . . 1 . 1 . 3 . . . . . . 1 . . 1 6 . 2 . . . 1 . 1 . . . 2 Energy Cannon 11 | . . . . . . 3 . 2 . . . . . . 1 . . . 1 . 2 . 1 . . . 1 . . . . Ballistic Gun 7 | 1 . . . . 2 . . . . 1 . . . 1 . 1 . . . . . . . . 1 . . . . . . Ballistic Cannon 3 | . . . . 1 . . . . . . . . . . . . . . 1 . . . 1 . . . . . . . . Launcher 4 | . . . . . . 1 . . . . . . . . . . . 2 1 . . . . . . . . . . . . Special Weapon . | . . . . . . . . . . . . . . . . . . . . . . . . . . . . . . . . Impact Weapon . | . . . . . . . . . . . . . . . . . . . . . . . . . . . . . . . . Slashing Weapon . | . . . . . . . . . . . . . . . . . . . . . . . . . . . . . . . . Piercing Weapon . | . . . . . . . . . . . . . . . . . . . . . . . . . . . . . . . . Special Melee Weapon 2 | . . . 1 . . . . . . . . . . . . 1 . . . . . . . . . . . . . . . Unidentified Prototypes 42 | . . . . . . 1 1 1 . . . 2 . . 1 . 2 1 11 . 4 . 3 . 7 . 1 1 . . 6 Parts Lost 5 | . . . . . . . 2 . . . . . . 1 . . . . . 1 . . . . . . . . . . 1 Power . | . . . . . . . . . . . . . . . . . . . . . . . . . . . . . . . . Propulsion . | . . . . . . . . . . . . . . . . . . . . . . . . . . . . . . . . Utility 3 | . . . . . . . 2 . . . . . . . . . . . . . . . . . . . . . . . 1 Weapon 2 | . . . . . . . . . . . . . . 1 . . . . . 1 . . . . . . . . . . . Highest Loss Streak 2 | . . . . . . . 2 . . . . . . 1 . . . . . 1 . . . . . . . . . . 1 Average Slot Usage (%) 97 | . 98 100 99 97 100 99 90 99 100 99 100 99 100 94 99 100 96 94 92 99 99 100 99 100 99 100 99 100 100 99 94 Engine 1 | . 10 . . . . 3 7 10 13 8 6 5 5 5 3 . . . . . . . . . . . . . . . . Core 2 | . 3 12 12 16 17 11 4 3 . 3 6 5 5 5 5 5 5 5 . . . . . . . . . . . . . Reactor 6 | . . . . . . . . . . . . . . . 1 5 5 5 9 10 10 10 10 10 10 10 10 10 10 9 5 Treads 2 | . . 9 10 . . . . . . . . . . . . . 2 5 4 . . . . . . . . . . . . Leg 7 | . 7 . 3 18 17 14 14 14 13 13 13 11 11 11 11 11 4 . 1 10 10 10 10 10 9 10 10 10 10 9 9 Device 28 | . 13 12 12 16 15 15 13 9 25 26 20 26 29 29 32 33 29 29 24 31 36 40 35 37 39 40 40 40 40 39 38 Storage 2 | . . . . . . . . . . . . . . . . . . . 4 5 5 5 5 5 5 5 5 5 5 4 4 Processor 14 | . . . . . 3 16 21 21 20 20 20 17 17 17 16 16 20 22 20 10 10 10 10 10 10 10 10 10 10 9 12 Hackware 1 | . . 12 12 9 9 1 1 5 . . . . . . . . . . . . . . . . . . . . . . . Protection 11 | . 12 12 12 17 17 14 11 13 6 5 13 11 11 11 11 11 10 9 10 15 11 10 14 12 10 10 10 10 10 9 8 Energy Gun 7 | . 13 12 3 8 2 . . 5 6 6 6 5 5 2 4 5 5 2 4 9 9 10 10 10 14 15 14 15 15 14 13 Energy Cannon 3 | . . . . . . 6 4 3 6 6 6 5 5 5 5 5 5 5 5 5 5 5 4 5 . . . . . . . Ballistic Gun 2 | . 13 12 12 6 6 7 7 7 6 6 6 5 5 2 5 5 5 4 . . . . . . . . . . . . . Launcher 1 | . . . . . . . . . . . . . . . . . . 2 3 . . . . . . . . . . . . Naked Turns . | . . . . . . . . . . . . . . . . . . . . . . . . . . . . . . . . Heaviest Build 94 | 6 11 11 11 28 41 53 49 57 54 54 51 58 58 58 64 59 67 68 94 72 75 75 75 75 78 74 74 74 75 75 89 Greatest Support 91 | 25 25 25 65 65 65 65 65 65 65 65 65 65 65 65 65 65 65 65 85 75 75 75 75 75 91 75 75 75 75 75 75 Greatest Overweight (x) 7 | . . . . . . . . . . . . . . . . . 1 1 7 . . . . . 4 . . . . . 1 Average Overweight (x) . | . . . . . . . . . . . . . . . . . . . . . . . . . . . . . . . . Largest Inventory Capacity 6 | 2 3 3 3 3 4 4 4 4 4 4 4 4 4 4 5 5 5 5 5 5 5 5 5 6 6 6 6 6 6 6 6 Average Capacity 4 | 1 2 3 3 3 3 4 4 4 4 4 4 4 4 4 4 5 5 5 5 5 5 5 5 5 6 6 6 6 6 6 6 Most Carried 6 | . 3 3 3 3 4 4 4 4 4 4 4 4 4 4 5 5 5 5 5 5 5 5 5 6 6 6 6 6 6 6 6 Average Carried 4 | . 1 2 3 2 3 3 4 3 3 3 4 3 3 3 4 5 4 4 3 4 4 4 4 5 5 6 6 5 6 6 5 Final Capacity 6 | 2 3 3 3 3 4 4 4 4 4 4 4 4 4 4 5 5 5 5 5 5 5 5 5 6 6 6 6 6 6 6 6 Final Carried 6 | . 3 3 3 3 4 4 4 4 4 4 4 4 4 4 5 5 5 5 5 5 4 5 5 6 6 6 6 6 6 6 6 Class Distribution -------------------- 48% | Scavenger-Mutant 20% | Scavenger-Gunner 6% | Mutant 5% | Gunner 4% | Hacker-Mutant 4% | Hacker-Skirmisher 3% | Tank 3% | Scavenger-Skirmisher Dominant Class ---------------- Mutant | -10/Materials Hacker-Mutant | -10/Mines Hacker-Mutant | -10/Exiles Scavenger-Skirmisher | -9/Mines Hacker-Skirmisher | -8/Materials Scavenger-Skirmisher | -7/Factory Scavenger-Skirmisher | -7/Waste Hacker-Skirmisher | -7/Factory Scavenger-Gunner | -7/Lower Caves Scavenger-Gunner | -7/Lower Caves Scavenger-Gunner | -7/Data Miner Scavenger-Gunner | -6/Proximity Caves Scavenger-Gunner | -6/Factory Scavenger-Gunner | -6/Waste Scavenger-Gunner | -6/Factory Scavenger-Gunner | -6/Lower Caves Scavenger-Mutant | -6/Lower Caves Scavenger-Mutant | -6/Zion Scavenger-Mutant | -6/Deep Caves Scavenger-Mutant | -5/Proximity Caves Mutant | -5/Factory Scavenger-Gunner | -5/Waste Tank | -5/Factory Gunner | -5/Extension Scavenger-Mutant | -5/Cetus Scavenger-Mutant | -5/Archives Scavenger-Mutant | -5/Hub_04(d) Scavenger-Mutant | -4/Factory Scavenger-Gunner | -4/Upper Caves Scavenger-Mutant | -4/Upper Caves Gunner | -4/Warlord Resources | -11 -10 -10 -10 -9 -8 -7 -7 -7 -7 -7 -7 -6 -6 -6 -6 -6 -6 -6 -6 -5 -5 -5 -5 -5 -5 -5 -5 -4 -4 -4 -4 ----------- Run | Scr Mat Min Exi Min Mat Fac Was Fac Low Low Dat Pro Fac Was Fac Low Low Zio Dee Pro Fac Was Fac Ext Cet Arc Hub Fac Upp Upp War Matter Collected 5405 | 273 134 19 . 91 796 321 . 255 100 162 . 146 16 . 703 96 198 60 1357 . 110 . 120 90 100 20 40 84 26 . 88 Remotely . | . . . . . . . . . . . . . . . . . . . . . . . . . . . . . . . . Salvage Created 23233 | 47 384 . . 36 852 560 . 489 134 587 . 265 98 . 1913 629 729 . 3217 998 2989 . 2251 2075 831 227 1543 1196 . 1099 84 Parts 1362 | 4 30 2 . 6 61 29 . 47 7 23 . 14 5 . 116 27 37 . 112 54 153 . 124 137 54 29 119 103 . 53 16 Haulers Intercepted 14 | . 2 . . . 1 . . 1 . . . . . . 1 . 1 . . . 5 . 2 1 . . . . . . . Recyclers Shooed 14 | . . . . . 6 1 . . . . . . . . 4 . . . . . . . 2 . . . . 1 . . . Parts Field Recycled . | . . . . . . . . . . . . . . . . . . . . . . . . . . . . . . . . Retrieved Matter . | . . . . . . . . . . . . . . . . . . . . . . . . . . . . . . . . Parts Self-Destructed 309 | . . . . . . . . . 7 16 . 27 . . . 27 56 . . 62 . . . . . . . . 3 39 72 Prevented 27 | . . . . . . . . . . 7 . 5 . . . . 2 . . . . . . . . . . . . . 13 Kills | -11 -10 -10 -10 -9 -8 -7 -7 -7 -7 -7 -7 -6 -6 -6 -6 -6 -6 -6 -6 -5 -5 -5 -5 -5 -5 -5 -5 -4 -4 -4 -4 ------- Run | Scr Mat Min Exi Min Mat Fac Was Fac Low Low Dat Pro Fac Was Fac Low Low Zio Dee Pro Fac Was Fac Ext Cet Arc Hub Fac Upp Upp War Combat Hostiles Destroyed 383 | . 10 1 . 3 21 12 . 13 4 9 . 7 . . 29 12 9 . 69 18 35 . 28 33 10 3 24 20 . 11 2 Guns 234 | . 10 1 . 3 8 5 . 10 1 6 . 3 . . 19 8 9 . 16 17 16 . 17 19 10 3 23 18 . 10 2 Cannons 97 | . . . . . 13 7 . 3 1 3 . 4 . . 10 4 . . 18 1 11 . 10 12 . . . . . . . AOE 42 | . . . . . . . . . 2 . . . . . . . . . 34 . 5 . . . . . 1 . . . . Classes Destroyed 20 | 1 5 . . . 5 1 . 1 1 . . . . . 1 . . . 4 . . . 1 . . . . . . . . Worker 15 | . 1 . . . 1 . . 1 . . . . . . . . . . . . 4 . 1 1 . . 4 2 . . . Builder 6 | . . . . . 1 . . . . . . . . . 1 . . . . . 3 . . 1 . . . . . . . Tunneler 4 | 2 . . . . . . . . . . . . . . . . . . . . 1 . 1 . . . . . . . . Hauler 14 | . 2 . . . 1 . . 1 . . . . . . 1 . 1 . . . 5 . 2 1 . . . . . . . Recycler 7 | . . . . . 1 1 . 1 . . . . . . 3 . . . . . . . . 1 . . . . . . . Operator 13 | . 2 . . . 1 1 . . . . . . 1 . 1 . . . . . 1 . . 2 . 2 2 . . . . Watcher 25 | . . . . . 2 1 . . . . . . 2 . 4 . . . . . 6 . 2 2 1 . 3 2 . . . Swarmer 50 | . 5 . . 3 4 5 . . . . . 2 . . 7 4 . . . 6 4 . . 4 . . 2 4 . . . Saboteur 1 | . . . . . . . . . . . . . . . . . . . . . . . 1 . . . . . . . . Grunt 132 | . 5 1 . . 9 5 . 7 2 4 . 3 . . 12 6 6 . . 4 18 . 15 17 2 . 14 2 . . . Brawler 8 | . . . . . . . . 1 . 2 . . . . . . 2 . . 2 . . 1 . . . . . . . . Duelist 7 | . . . . . . . . . 1 1 . . . . 1 . . . . 1 1 . . . 1 . 1 . . . . Sentry 48 | . . . . . 7 1 . 2 . 2 . 2 . . 5 . 1 . . 1 4 . 4 7 . 3 4 4 . 1 . Hunter 23 | . . . . . 1 . . 1 . . . . . . 2 2 . . . 1 3 . 1 2 . . . 6 . 4 . Programmer 31 | . . . . . . 1 . 2 1 . . . . . 1 . . . . 2 5 . 6 . 5 . 2 4 . 1 1 Behemoth 7 | . . . . . . . . . . . . . . . 1 . . . . 1 . . . 1 . . 1 1 . 1 1 Cetus Guard 2 | . . . . . . . . . . . . . . . . . . . . . . . . . 2 . . . . . . Z-Light 10 | . . . . . . . . . . . . . . . . . . . 10 . . . . . . . . . . . . Assembler 2 | . . . . . . . . . . . . . . . . . . . 2 . . . . . . . . . . . . Assembled 39 | . . . . . . . . . . . . . . . . . . . 39 . . . . . . . . . . . . Golem 19 | . . . . . . . . . . . . . . . . . . . 19 . . . . . . . . . . . . Thug 1 | . . . . . . . . . . . . . . . . . . . . . . . . . . . . . . 1 . Savage 4 | . . . . . . . . . . . . . . . . . . . . . . . . 1 . . . . . 3 . Butcher 1 | . . . . . . . . . . . . . . . . . . . . . . . . 1 . . . . . . . Best Kill Streak 34 | 2 4 1 . 3 6 3 . 6 3 5 . 2 1 . 6 4 3 . 34 5 9 . 6 5 3 3 6 5 . 4 2 Combat Bots Only 34 | . 4 1 . 3 5 3 . 3 3 5 . 2 . . 5 4 3 . 34 5 5 . 6 5 3 3 5 5 . 4 2 Max Kills in Single Turn 11 | 1 2 1 . 1 2 2 . 1 2 2 . 1 1 . 1 2 1 . 11 1 8 . 2 2 1 1 2 1 . 1 1 Gunslinging 1 | . . . . . . . . . . . . . . . . . . . . . 1 . . . . . . . . . . Exploded 11 | . . . . . . . . . 2 . . . . . . . . . 11 . 3 . . . . . 1 . . . . Melee . | . . . . . . . . . . . . . . . . . . . . . . . . . . . . . . . . Uniques/NPCs Destroyed 2 | . . . . . . . . . . . . . . . . . . . 1 . . . . . 1 . . . . . . Z-Imprinter (-6/Deep Caves) A7 (-5/Cetus) Combat | -11 -10 -10 -10 -9 -8 -7 -7 -7 -7 -7 -7 -6 -6 -6 -6 -6 -6 -6 -6 -5 -5 -5 -5 -5 -5 -5 -5 -4 -4 -4 -4 -------- Run | Scr Mat Min Exi Min Mat Fac Was Fac Low Low Dat Pro Fac Was Fac Low Low Zio Dee Pro Fac Was Fac Ext Cet Arc Hub Fac Upp Upp War Damage Taken 16635 | . 318 154 . 118 709 299 83 753 173 671 . 405 . 27 1197 309 181 . 2195 1258 1236 . 936 1318 226 95 960 974 71 483 1486 Core 10615 | . 197 95 . 68 480 201 66 473 121 477 . 294 . 12 757 226 118 . 1351 772 783 . 516 852 119 67 606 599 50 308 1007 Absorbed by Shields 5332 | . . . . . 140 117 . . 8 250 . 149 . 9 447 116 72 . 648 468 462 . 355 488 87 34 357 363 28 173 561 Reduced by Siege Mode 30 | . . . . . . . . . . . . . . . . . . . 30 . . . . . . . . . . . . Redirected to Core 9366 | . 160 77 . 58 406 165 66 421 121 439 . 214 . 12 632 198 99 . 1128 714 713 . 489 770 119 67 592 544 50 285 827 Core Remaining (%) 95 | 100 . . . 100 100 . . . . . . 100 . . . . . . . 74 . . . . . . 100 . . . . Volleys Fired 1238 | 3 44 9 . 11 86 31 . 34 7 28 . 19 6 . 83 26 27 3 235 59 98 . 64 85 51 17 80 80 . 43 9 Largest 3 | 2 2 2 . 2 2 3 . 3 3 3 . 3 3 . 3 3 3 1 2 2 3 . 3 3 3 2 3 3 . 3 2 Hottest 240 | 60 60 60 . 60 85 154 . 113 113 118 . 118 118 . 140 140 140 90 170 153 195 . 195 195 195 160 240 240 . 240 160 Shots Fired 2544 | 6 85 16 . 21 126 65 . 88 21 84 . 57 18 . 222 64 57 3 258 116 201 . 192 247 108 34 167 170 . 101 17 Gun 1896 | 6 85 16 . 21 52 32 . 65 14 56 . 38 12 . 150 43 54 . 137 105 129 . 128 162 102 34 167 170 . 101 17 Cannon 642 | . . . . . 74 33 . 23 7 28 . 19 6 . 72 21 3 3 115 11 72 . 64 85 6 . . . . . . Launcher 6 | . . . . . . . . . . . . . . . . . . . 6 . . . . . . . . . . . . Special . | . . . . . . . . . . . . . . . . . . . . . . . . . . . . . . . . Kinetic 473 | 3 44 9 . 11 126 47 . 37 7 28 . 19 6 . 75 23 27 . 11 . . . . . . . . . . . . Thermal 1956 | 3 41 7 . 10 . . . 20 7 28 . 19 6 . 147 41 30 3 241 116 201 . 192 247 108 34 167 170 . 101 17 Explosive 6 | . . . . . . . . . . . . . . . . . . . 6 . . . . . . . . . . . . Electromagnetic 109 | . . . . . . 18 . 31 7 28 . 19 6 . . . . . . . . . . . . . . . . . . Robot Hit Streak 45 | 2 11 5 . 4 11 12 . 32 14 29 . 16 5 . 24 12 16 . 41 19 21 . 26 28 13 12 31 45 . 31 9 Robot Miss Streak 5 | 2 5 1 . 3 4 1 . 1 2 1 . 2 3 . 2 1 1 . 4 3 2 . 1 3 2 3 3 2 . 1 1 Penetration Max 2 | . . . . . 2 2 . 1 . 1 . . . . 1 1 1 . . . . . . . . . . . . . . Secondary Targets 17 | . 1 . . . . . . 1 . . . . . . . . 3 . . 2 1 . . . 2 1 4 1 . 1 . Max Gunslinging Chain 1 | . 1 . . . . . . 1 . . . . . . . . 1 . . 1 1 . . . 1 1 1 1 . 1 . Shots Hit Robots 1937 | 2 54 11 6 11 79 50 . 70 18 72 . 45 10 . 160 43 49 . 213 88 153 . 143 182 85 26 132 135 . 87 13 Core Hits 1011 | 2 26 2 . 5 41 22 . 35 6 31 . 20 5 . 72 23 20 . 222 39 91 . 73 85 29 18 57 54 . 27 6 Critical Hits 211 | . . . . . 31 10 . 1 3 5 . 6 . . 21 3 5 . 36 3 12 . 10 14 5 2 15 18 . 11 . Critical Kills 75 | . . . . . 12 1 . 1 . . . 3 . . 8 2 2 . 20 1 2 . 5 2 4 1 4 5 . 2 . Critical Parts Destroyed 106 | . . . . . 18 7 . . 3 3 . 2 . . 8 1 3 . 9 2 9 . 3 11 1 . 7 11 . 8 . Melee Attacks 6 | . . . 6 . . . . . . . . . . . . . . . . . . . . . . . . . . . . Impact . | . . . . . . . . . . . . . . . . . . . . . . . . . . . . . . . . Slashing . | . . . . . . . . . . . . . . . . . . . . . . . . . . . . . . . . Piercing . | . . . . . . . . . . . . . . . . . . . . . . . . . . . . . . . . Sneak Attacks 6 | . . . 6 . . . . . . . . . . . . . . . . . . . . . . . . . . . . Combat Hostiles . | . . . . . . . . . . . . . . . . . . . . . . . . . . . . . . . . Follow-up Attacks . | . . . . . . . . . . . . . . . . . . . . . . . . . . . . . . . . Damage Inflicted 61051 | 42 555 104 . 120 2044 1376 . 1535 558 1422 . 937 314 . 4697 1302 1371 . 7858 2429 7442 . 4167 6290 2995 889 4726 4309 . 3039 530 Guns 40897 | 42 555 104 . 120 931 581 . 1070 185 803 . 440 176 . 3048 803 1274 . 2741 2349 3014 . 2736 3723 2812 889 4697 4309 . 3039 456 Cannons 14960 | . . . . . 982 717 . 465 201 619 . 497 138 . 1649 499 97 . 2778 80 2120 . 1368 2567 183 . . . . . . Explosions 5021 | . . . . . 124 78 . . 172 . . . . . . . . . 2339 . 2308 . . . . . . . . . . Melee . | . . . . . . . . . . . . . . . . . . . . . . . . . . . . . . . . Ramming 173 | . . . . . 7 . . . . . . . . . . . . . . . . . 63 . . . 29 . . . 74 Kinetic 6948 | 8 173 60 . 44 1913 867 . 777 134 545 . 252 44 . 1140 271 563 . 157 . . . . . . . . . . . . Thermal 50058 | 34 382 44 . 76 . 78 . 409 373 619 . 497 138 . 3557 1031 808 . 5362 2429 7442 . 4104 6290 2995 889 4697 4309 . 3039 456 Explosive 1627 | . . . . . . . . . . . . . . . . . . . 1627 . . . . . . . . . . . . Electromagnetic 2245 | . . . . . 124 431 . 349 51 258 . 188 132 . . . . . 712 . . . . . . . . . . . . Impact . | . . . . . . . . . . . . . . . . . . . . . . . . . . . . . . . . Slashing . | . . . . . . . . . . . . . . . . . . . . . . . . . . . . . . . . Piercing . | . . . . . . . . . . . . . . . . . . . . . . . . . . . . . . . . Highest Corruption 5 | . . . . . . . . 3 3 3 . . . 5 5 . . . . 1 4 . 1 1 . . 2 5 3 . . Average Corruption 2 | . . . . . . . . 2 2 2 . . . 5 2 . . . . 1 2 . 1 1 . . 1 3 2 . . Corruption Purged 27 | . . . . . . . . 1 . 3 . . . . 8 . . . . . 4 . 1 2 . . 2 3 3 . . Effects 81 | . . . . . . . . 10 7 8 . . . 1 15 . . . . 7 9 . . . . . 1 21 2 . . Message Errors 27 | . . . . . . . . 3 5 1 . . . 1 6 . . . . 1 6 . . . . . 1 3 . . . Matter Fused 9 | . . . . . . . . . . 1 . . . . 3 . . . . . . . . . . . . 4 1 . . Heat Flow Errors 6 | . . . . . . . . . . . . . . . 2 . . . . . 1 . . . . . . 3 . . . Energy Discharges 7 | . . . . . . . . 1 1 2 . . . . 1 . . . . . . . . . . . . 1 1 . . Data Loss (minor) 10 | . . . . . . . . 3 1 1 . . . . 2 . . . . 1 . . . . . . . 2 . . . Targeting Errors 21 | . . . . . . . . 3 . 3 . . . . 1 . . . . 5 2 . . . . . . 7 . . . Weapon Failures 1 | . . . . . . . . . . . . . . . . . . . . . . . . . . . . 1 . . . Overload Shots 19 | . . . . . . . . . . . . . . . . . . 3 12 . . . . 4 . . . . . . . Overflow Damage 944 | . . . . . . 16 . 19 34 . . 23 2 . 39 33 . . 154 . 455 . 33 124 . . . . . . 12 Projectiles 417 | . . . . . . 16 . 19 12 . . 23 2 . 39 33 . . 77 . 44 . 28 124 . . . . . . . Explosions 510 | . . . . . . . . . 22 . . . . . . . . . 77 . 411 . . . . . . . . . . Melee 17 | . . . . . . . . . . . . . . . . . . . . . . . 5 . . . . . . . 12 Knockbacks 11 | . . . . . 5 4 . . . . . . . . . . . . . . . . 1 . . . . . . . 1 Impact 2 | . . . . . . . . . . . . . . . . . . . . . . . 1 . . . . . . . 1 Kinetic 8 | . . . . . 5 3 . . . . . . . . . . . . . . . . . . . . . . . . . Secondary 1 | . . . . . . 1 . . . . . . . . . . . . . . . . . . . . . . . . . Self-Inflicted Damage 349 | . . . . . . . . . 34 . . . . . . . . . 63 . 170 . 31 . . . 14 . . . 37 Shots 7 | . . . . . . . . . 1 . . . . . . . . . 3 . 3 . . . . . . . . . . Rammed 4 | . . . . . . . . . . . . . . . . . . . . . . . 2 . . . 1 . . . 1 Targets Rammed 5 | . . . . . 1 . . . . . . . . . . . . . . . . . 2 . . . 1 . . . 1 Kicked 1 | . . . . . 1 . . . . . . . . . . . . . . . . . . . . . . . . . . Crushed . | . . . . . . . . . . . . . . . . . . . . . . . . . . . . . . . . Highest Temperature 396 | 8 87 86 . 36 396 178 . 233 72 194 . 150 113 . 198 198 196 58 199 199 199 . 199 203 199 194 196 205 . 196 194 Average Temperature 92 | 6 30 30 . 14 78 45 . 77 29 64 . 54 39 . 99 98 96 30 81 131 81 . 115 118 115 107 119 109 . 122 68 Received Heat Transfer 3973 | . 123 84 . . 261 58 . 300 27 186 . 66 . . 214 77 105 . 547 297 343 . 299 365 6 12 342 73 6 30 152 Effects 1 | . . . . . 1 . . . . . . . . . . . . . . . . . . . . . . . . . . Energy Bleed 1 | . . . . . 1 . . . . . . . . . . . . . . . . . . . . . . . . . . Siege Activations 5 | . . . . . . . . . . . . . . . . . . . 5 . . . . . . . . . . . . Total Turns 217 | . . . . . . . . . . . . . . . . . . . 217 . . . . . . . . . . . . Longest Duration 119 | . . . . . . . . . . . . . . . . . . . 119 . . . . . . . . . . . . Robots Corrupted 1 | . . . . . . . . . . . . . . . . . . . 1 . . . . . . . . . . . . Combat Hostiles 1 | . . . . . . . . . . . . . . . . . . . 1 . . . . . . . . . . . . Parts Fried 12 | . . . . . 1 3 . . . . . . 3 . . . . . 4 . . . . . 1 . . . . . . Impact Corruptions 2 | . . . . . . . . . . . . . . . . . . . . . . . 1 . . . . . . . 1 Robots Melted 10 | . . . . . . . . . . . . . . . . . . . . . 3 . 1 3 . . . 2 . 1 . Combat Hostiles 9 | . . . . . . . . . . . . . . . . . . . . . 3 . 1 2 . . . 2 . 1 . Parts Melted 188 | . 1 . . . . . . . . . . 1 . . 9 1 . . 10 10 26 . 29 23 7 2 18 34 . 15 2 Heat Transferred 58848 | 75 825 100 . 175 . 150 . 555 359 851 . 592 148 . 4107 1221 999 . 7317 2905 7981 . 5551 7928 2690 999 4773 5032 . 3108 407 Parts Sabotaged . | . . . . . . . . . . . . . . . . . . . . . . . . . . . . . . . . Parts Stolen . | . . . . . . . . . . . . . . . . . . . . . . . . . . . . . . . . Parts Stripped . | . . . . . . . . . . . . . . . . . . . . . . . . . . . . . . . . Power Chain Reactions 2 | . . . . . . 1 . . 1 . . . . . . . . . . . . . . . . . . . . . . Missiles Intercepted . | . . . . . . . . . . . . . . . . . . . . . . . . . . . . . . . . Alert | -11 -10 -10 -10 -9 -8 -7 -7 -7 -7 -7 -7 -6 -6 -6 -6 -6 -6 -6 -6 -5 -5 -5 -5 -5 -5 -5 -5 -4 -4 -4 -4 ------- Run | Scr Mat Min Exi Min Mat Fac Was Fac Low Low Dat Pro Fac Was Fac Low Low Zio Dee Pro Fac Was Fac Ext Cet Arc Hub Fac Upp Upp War Peak Influence 1455 | 10 372 435 . 131 674 247 91 326 . . . . 172 80 1318 . . . . . 1455 404 1215 912 820 403 812 589 . . . Average Influence 445 | 2 163 277 . 89 376 127 76 125 . . . . 89 67 699 . . . . . 536 404 597 649 640 363 368 412 . . . Maximum Alert Level 4 | . 1 2 . . 2 1 . 1 . . . . . . 4 . . . . . 4 2 4 3 3 2 3 2 . . . Low Security (%) 27 | 100 57 6 . 100 10 71 100 79 . . . . 100 100 27 . . . . . 33 . 6 . . . 5 . . . . Level 1 26 | . 42 78 . . 52 28 . 20 . . . . . . 8 . . . . . 8 . 44 . . 77 62 42 . . . Level 2 24 | . . 15 . . 37 . . . . . . . . . 3 . . . . . 31 100 17 63 69 22 23 57 . . . Level 3 14 | . . . . . . . . . . . . . . . 41 . . . . . 14 . 13 36 30 . 8 . . . . Level 4 6 | . . . . . . . . . . . . . . . 19 . . . . . 12 . 18 . . . . . . . . Level 5 . | . . . . . . . . . . . . . . . . . . . . . . . . . . . . . . . . High Security . | . . . . . . . . . . . . . . . . . . . . . . . . . . . . . . . . Max Security . | . . . . . . . . . . . . . . . . . . . . . . . . . . . . . . . . Squads Dispatched 74 | . 3 . . . 4 5 . 6 . 1 . . . . 11 . . . . 1 13 . 10 7 1 . 8 4 . . . Investigation 32 | . 2 . . . 1 2 . 2 . . . . . . 7 . . . . . 2 . 4 5 1 . 4 2 . . . Extermination 11 | . . . . . . 1 . 2 . . . . . . 1 . . . . . 2 . 2 . . . 1 2 . . . Reinforcement 15 | . 1 . . . 1 2 . 2 . . . . . . . . . . . . 5 . 1 2 . . 1 . . . . Assault 14 | . . . . . 1 . . . . 1 . . . . 3 . . . . 1 4 . 3 . . . 1 . . . . Garrison 2 | . . . . . 1 . . . . . . . . . . . . . . . . . . . . . 1 . . . . Intercept . | . . . . . . . . . . . . . . . . . . . . . . . . . . . . . . . . Construction Impeded 3 | . . . . . . 1 . . . . . . . . . . . . . . 1 . . 1 . . . . . . . Haulers Reinforced 4 | . . . . . . . . 2 . . . . . . . . . . . . 1 . 1 . . . . . . . . Stealth | -11 -10 -10 -10 -9 -8 -7 -7 -7 -7 -7 -7 -6 -6 -6 -6 -6 -6 -6 -6 -5 -5 -5 -5 -5 -5 -5 -5 -4 -4 -4 -4 --------- Run | Scr Mat Min Exi Min Mat Fac Was Fac Low Low Dat Pro Fac Was Fac Low Low Zio Dee Pro Fac Was Fac Ext Cet Arc Hub Fac Upp Upp War Distress Signals 21 | . . . . . 6 . . . . . . . . . 2 . . . . . 1 . 1 2 2 1 3 3 . . . Communications Jammed . | . . . . . . . . . . . . . . . . . . . . . . . . . . . . . . . . Distress Signals . | . . . . . . . . . . . . . . . . . . . . . . . . . . . . . . . . Times Spotted 632 | . 17 12 . 9 35 22 5 13 4 12 . 16 5 3 40 14 15 . 74 30 54 6 46 60 18 8 40 26 3 11 34 Peak Tracking Total 36 | . 7 3 . 4 5 3 5 3 3 11 . 4 2 3 4 4 5 . 36 8 8 6 6 8 5 1 9 5 3 4 21 Tactical Retreats 45 | . 1 . . . 1 4 . . 1 2 . . . . 2 2 1 . 7 3 3 . 3 5 . . 7 1 . . 2 Traps | -11 -10 -10 -10 -9 -8 -7 -7 -7 -7 -7 -7 -6 -6 -6 -6 -6 -6 -6 -6 -5 -5 -5 -5 -5 -5 -5 -5 -4 -4 -4 -4 ------- Run | Scr Mat Min Exi Min Mat Fac Was Fac Low Low Dat Pro Fac Was Fac Low Low Zio Dee Pro Fac Was Fac Ext Cet Arc Hub Fac Upp Upp War Traps Triggered 10 | . . . . . . 1 . . . . . . 1 . 2 . . . 1 . 1 . 3 . . . . 1 . . . Indirectly 1 | . . . . . . . . . . . . . . . . . . . 1 . . . . . . . . . . . . Trap Hack Attempts . | . . . . . . . . . . . . . . . . . . . . . . . . . . . . . . . . Triggered . | . . . . . . . . . . . . . . . . . . . . . . . . . . . . . . . . Disarmed . | . . . . . . . . . . . . . . . . . . . . . . . . . . . . . . . . Reprogrammed . | . . . . . . . . . . . . . . . . . . . . . . . . . . . . . . . . Reused 5 | . . . . . . . . . . . . . . . . . . . 5 . . . . . . . . . . . . Traps Extracted . | . . . . . . . . . . . . . . . . . . . . . . . . . . . . . . . . Installed 14 | . . . . . . . . . . . . . . . . . . . 14 . . . . . . . . . . . . Triggered 12 | . . . . . . 1 . . . . . . . . . . . . . . . . . . . . . . . . 11 Fabricated Traps 14 | . . . . . . . . . . . . . . . . . . . 14 . . . . . . . . . . . . Machines | -11 -10 -10 -10 -9 -8 -7 -7 -7 -7 -7 -7 -6 -6 -6 -6 -6 -6 -6 -6 -5 -5 -5 -5 -5 -5 -5 -5 -4 -4 -4 -4 ---------- Run | Scr Mat Min Exi Min Mat Fac Was Fac Low Low Dat Pro Fac Was Fac Low Low Zio Dee Pro Fac Was Fac Ext Cet Arc Hub Fac Upp Upp War Machines Disabled 54 | . . . . . 4 2 . . . . . 1 1 . 4 . . 3 3 . 22 . 3 1 3 2 4 1 . . . Max in Single Turn 13 | . . . . . 1 2 . . . . . 1 1 . 1 . . 1 1 . 13 . 1 . 1 1 1 1 . . . Garrison Access 9 | . . . . . 1 1 . 1 . . . . 1 . 1 . . . . . 2 . 1 . . . 1 . . . . Network Hub 3 | . . . . . . . . . . . . . . . . . . . . . . . . . . . 3 . . . . Machines Sabotaged 1 | . . . . . . . . . . . . . . . . . . . . . . . . . . . 1 . . . . Garrisons Compromised . | . . . . . . . . . . . . . . . . . . . . . . . . . . . . . . . . Overloaded Fab Kills . | . . . . . . . . . . . . . . . . . . . . . . . . . . . . . . . . Fab Network Shutdowns 2 | . . . . . . . . . . . . . . . 1 . . . . . . . 1 . . . . . . . . Hacking | -11 -10 -10 -10 -9 -8 -7 -7 -7 -7 -7 -7 -6 -6 -6 -6 -6 -6 -6 -6 -5 -5 -5 -5 -5 -5 -5 -5 -4 -4 -4 -4 --------- Run | Scr Mat Min Exi Min Mat Fac Was Fac Low Low Dat Pro Fac Was Fac Low Low Zio Dee Pro Fac Was Fac Ext Cet Arc Hub Fac Upp Upp War Machines Accessed 111 | . 9 . 2 . 7 6 . 6 . . 4 . 2 . 14 1 1 . . . 10 . 9 10 4 . 10 6 . . 10 Terminals 56 | . 7 . . . 4 3 . 2 . . . . . . 7 . . . . . 4 . 5 9 4 . 9 2 . . . Fabricators 11 | . . . . . . 1 . 2 . . . . . . 2 . . . . . 1 . 2 . . . . 3 . . . Repair Stations 3 | . 1 . . . . . . . . . . . . . . . . . . . 2 . . . . . . . . . . Recycling Units 5 | . 1 . . . 1 . . . . . . . . . 1 . . . . . . . . 1 . . . 1 . . . Scanalyzers 9 | . . . . . 1 1 . 1 . . . . 1 . 3 . . . . . 1 . 1 . . . . . . . . Garrison Access 9 | . . . . . 1 1 . 1 . . . . 1 . 1 . . . . . 2 . 1 . . . 1 . . . . Total Hacks 391 | . 31 . 2 . 34 21 . 27 . . 27 . 3 . 40 1 7 . . . 31 . 26 45 10 . 24 48 . . 14 Successful 253 | . 20 . 2 . 25 12 . 22 . . 27 . 3 . 23 1 7 . . . 19 . 17 22 5 . 8 26 . . 14 Failed 136 | . 10 . . . 9 9 . 5 . . . . . . 17 . . . . . 12 . 9 23 5 . 16 21 . . . Catastrophic 23 | . . . . . . 1 . . . . . . . . 4 . . . . . . . 4 2 2 . 6 4 . . . Database Lockouts 2 | . 1 . . . . . . . . . . . . . . . . . . . . . . . . . . 1 . . . Manual 142 | . 14 . 1 . 10 5 . 9 . . . . . . 12 . . . . . 10 . 11 30 7 . 10 22 . . 1 Terminals 233 | . 27 . . . 22 11 . 11 . . . . . . 20 . . . . . 19 . 18 42 10 . 21 32 . . . Fabricators 34 | . . . . . . 3 . 4 . . . . . . 6 . . . . . 3 . 5 . . . . 13 . . . Repair Stations 5 | . 2 . . . . . . . . . . . . . . . . . . . 3 . . . . . . . . . . Recycling Units 14 | . 2 . . . 5 . . . . . . . . . 1 . . . . . . . . 3 . . . 3 . . . Scanalyzers 38 | . . . . . 6 5 . 10 . . . . 2 . 11 . . . . . 2 . 2 . . . . . . . . Garrison Access 16 | . . . . . 1 2 . 2 . . . . 1 . 2 . . . . . 4 . 1 . . . 3 . . . . Terminal Hacks 145 | . 11 . 2 . 12 6 . 6 . . 27 . . . 7 1 7 . . . 10 . 9 12 5 . 4 12 . . 14 Record 32 | . . . 1 . . . . . . . 11 . . . . . 7 . . . . . . . 1 . . . . . 12 Part Schematic 12 | . . . . . . . . . . . 6 . . . 1 . . . . . 2 . . 2 . . . 1 . . . Robot Schematic 8 | . . . . . . . . 1 . . 7 . . . . . . . . . . . . . . . . . . . . Robot Analysis 17 | . 4 . . . 1 1 . . . . . . . . 1 . . . . . 1 . 3 2 . . 2 2 . . . Prototype ID Bank 20 | . 3 . . . 3 2 . 2 . . 3 . . . 3 . . . . . 1 . 1 1 . . . 1 . . . Open Door 4 | . . . . . . . . . . . . . . . . 1 . . . . . . . . 1 . . . . . 2 Level Access Points 1 | . . . . . . . . . . . . . . . 1 . . . . . . . . . . . . . . . . Branch Access Points 8 | . 1 . . . 1 1 . 1 . . . . . . . . . . . . 1 . 1 1 . . . 1 . . . Terminal Index 7 | . . . . . . 1 . 1 . . . . . . 1 . . . . . 1 . 1 1 . . . 1 . . . Fabricator Index 1 | . . . . . . . . . . . . . . . . . . . . . . . . . . . . 1 . . . Alert Level 5 | . . . . . 1 . . . . . . . . . . . . . . . 1 . . 1 . . 1 1 . . . Unreport Threat 14 | . . . . . 3 . . . . . . . . . . . . . . . 2 . 2 3 2 . . 2 . . . Locate Traps 8 | . 2 . . . 1 1 . . . . . . . . . . . . . . . . 1 1 . . 1 1 . . . Recall Investigation 1 | . . . . . . . . . . . . . . . . . . . . . . . . . 1 . . . . . . Hauler Manifests 3 | . 1 . . . 1 . . . . . . . . . . . . . . . . . . . . . . 1 . . . Zone Layout 3 | . . . . . 1 . . 1 . . . . . . . . . . . . 1 . . . . . . . . . . EX-Prototype ID Bank 1 | . . . 1 . . . . . . . . . . . . . . . . . . . . . . . . . . . . Fabricator Hacks 15 | . . . . . . 1 . 1 . . . . . . 3 . . . . . 2 . 3 . . . . 5 . . . Load Schematic 5 | . . . . . . . . . . . . . . . 1 . . . . . 1 . 1 . . . . 2 . . . Build 10 | . . . . . . 1 . 1 . . . . . . 2 . . . . . 1 . 2 . . . . 3 . . . Repair Station Hacks 2 | . 2 . . . . . . . . . . . . . . . . . . . . . . . . . . . . . . Scan Component 1 | . 1 . . . . . . . . . . . . . . . . . . . . . . . . . . . . . . Repair 1 | . 1 . . . . . . . . . . . . . . . . . . . . . . . . . . . . . . Recycling Unit Hacks 7 | . 1 . . . 2 . . . . . . . . . 1 . . . . . . . . 1 . . . 2 . . . Report Inventory 5 | . 1 . . . 1 . . . . . . . . . 1 . . . . . . . . 1 . . . 1 . . . Retrieve Components 2 | . . . . . 1 . . . . . . . . . . . . . . . . . . . . . . 1 . . . Scanalyzer 32 | . . . . . 6 3 . 10 . . . . 2 . 7 . . . . . 2 . 2 . . . . . . . . Insert Component 16 | . . . . . 3 2 . 4 . . . . 1 . 4 . . . . . 1 . 1 . . . . . . . . Analyze 16 | . . . . . 3 1 . 6 . . . . 1 . 3 . . . . . 1 . 1 . . . . . . . . Garrison Access Hacks 6 | . . . . . 1 1 . 1 . . . . 1 . . . . . . . 1 . 1 . . . . . . . . Seal Access 6 | . . . . . 1 1 . 1 . . . . 1 . . . . . . . 1 . 1 . . . . . . . . Unauthorized Hacks 46 | . 6 . . . 4 1 . 4 . . . . . . 5 . . . . . 4 . 2 9 . . 4 7 . . . Terminals 34 | . 5 . . . 3 . . 2 . . . . . . 3 . . . . . 2 . 1 9 . . 4 5 . . . Track 7 | . 1 . . . 1 . . 1 . . . . . . 1 . . . . . . . . 1 . . . 2 . . . Assimilate 4 | . . . . . . . . . . . . . . . 1 . . . . . 1 . 1 1 . . . . . . . Botnet 18 | . 3 . . . 2 . . 1 . . . . . . 1 . . . . . 1 . . 6 . . 2 2 . . . Operators 3 | . 1 . . . . . . . . . . . . . . . . . . . . . . 1 . . . 1 . . . Sabotage 2 | . . . . . . . . . . . . . . . . . . . . . . . . . . . 2 . . . . Fabricators 8 | . . . . . . 1 . 2 . . . . . . 1 . . . . . 1 . 1 . . . . 2 . . . Report 6 | . . . . . . 1 . 1 . . . . . . 1 . . . . . 1 . 1 . . . . 1 . . . Download 2 | . . . . . . . . 1 . . . . . . . . . . . . . . . . . . . 1 . . . Repair Stations . | . . . . . . . . . . . . . . . . . . . . . . . . . . . . . . . . Recycling Units 2 | . 1 . . . 1 . . . . . . . . . . . . . . . . . . . . . . . . . . Mask 1 | . . . . . 1 . . . . . . . . . . . . . . . . . . . . . . . . . . Tunnel 1 | . 1 . . . . . . . . . . . . . . . . . . . . . . . . . . . . . . Scanalyzers . | . . . . . . . . . . . . . . . . . . . . . . . . . . . . . . . . Garrison Access 2 | . . . . . . . . . . . . . . . 1 . . . . . 1 . . . . . . . . . . Jam 2 | . . . . . . . . . . . . . . . 1 . . . . . 1 . . . . . . . . . . Data Cores Recovered 5 | . 1 . . . 1 . . . . . . . . . . . . . . . . . . 1 . . 2 . . . . Used 4 | . 1 . . . 1 . . . . . . . . . . . . . . . . . . 1 . . 1 . . . . Hacking Detections 79 | . 8 . . . 6 5 . 2 . . . . . . 14 . . . . . 8 . 8 10 4 . 10 4 . . . Full Trace Events 23 | . 1 . . . 1 2 . 1 . . . . . . 6 . . . . . 1 . 3 5 1 . 2 . . . . Feedback Events 1 | . . . . . . . . . . . . . . . . . . . . . . . . 1 . . . . . . . Corruption 1 | . . . . . . . . . . . . . . . . . . . . . . . . 1 . . . . . . . Feedback Blocked . | . . . . . . . . . . . . . . . . . . . . . . . . . . . . . . . . Robot Schematics Acquired 8 | . . . . . . . . 1 . . 7 . . . . . . . . . . . . . . . . . . . . Robots Built 3 | . . . . . . . . . . . . . . . . . . . . . . . 3 . . . . . . . . Matter 318 | . . . . . . . . . . . . . . . . . . . . . . . 318 . . . . . . . . Time 56 | . . . . . . . . . . . . . . . . . . . . . . . 56 . . . . . . . . Total Robot Build Rating 18 | . . . . . . . . . . . . . . . . . . . . . . . 18 . . . . . . . . Part Schematics Acquired 27 | . . . . . 3 1 . 5 . . 6 . 1 . 3 . . . . . 3 . 1 2 . . . 2 . . . Parts Built 15 | . . . . . . 2 . 2 . . . . . . 3 . . . . . 2 . 2 . . . . 4 . . . Matter 2347 | . . . . . . 190 . 212 . . . . . . 541 . . . . . 168 . 256 . . . . 980 . . . Time 680 | . . . . . . 47 . 106 . . . . . . 140 . . . . . 84 . 64 . . . . 239 . . . Total Part Build Rating 95 | . . . . . . 10 . 12 . . . . . . 21 . . . . . 8 . 16 . . . . 28 . . . Parts Repaired 1 | . 1 . . . . . . . . . . . . . . . . . . . . . . . . . . . . . . Time 26 | . 26 . . . . . . . . . . . . . . . . . . . . . . . . . . . . . . Parts Recycled . | . . . . . . . . . . . . . . . . . . . . . . . . . . . . . . . . Recycled Matter . | . . . . . . . . . . . . . . . . . . . . . . . . . . . . . . . . Retrieved Matter . | . . . . . . . . . . . . . . . . . . . . . . . . . . . . . . . . Retrieved Components 13 | . . . . . 10 . . . . . . . . . . . . . . . . . . . . . . 3 . . . Parts Scanalyzed 14 | . . . . . 3 2 . 4 . . . . 1 . 3 . . . . . . . 1 . . . . . . . . Part Schematics Acquired 13 | . . . . . 3 1 . 4 . . . . 1 . 2 . . . . . 1 . 1 . . . . . . . . Parts Damaged . | . . . . . . . . . . . . . . . . . . . . . . . . . . . . . . . . Bothacking | -11 -10 -10 -10 -9 -8 -7 -7 -7 -7 -7 -7 -6 -6 -6 -6 -6 -6 -6 -6 -5 -5 -5 -5 -5 -5 -5 -5 -4 -4 -4 -4 ------------ Run | Scr Mat Min Exi Min Mat Fac Was Fac Low Low Dat Pro Fac Was Fac Low Low Zio Dee Pro Fac Was Fac Ext Cet Arc Hub Fac Upp Upp War Used RIF Installer . | . . . . . . . . . . . . . . . . . . . . . . . . . . . . . . . . Robots Hacked 6 | . . . 6 . . . . . . . . . . . . . . . . . . . . . . . . . . . . Non-combat 3 | . . . 3 . . . . . . . . . . . . . . . . . . . . . . . . . . . . Combat 3 | . . . 3 . . . . . . . . . . . . . . . . . . . . . . . . . . . . Robot Hacks Applied 6 | . . . 6 . . . . . . . . . . . . . . . . . . . . . . . . . . . . parse_system 6 | . . . 6 . . . . . . . . . . . . . . . . . . . . . . . . . . . . Relay Couplers Released 2 | . . . . . 1 . . . . . . . . . . . . . . . . . . . . . 1 . . . . Machine Destruction 2 | . . . . . 1 . . . . . . . . . . . . . . . . . . . . . 1 . . . . Robots Rewired 19 | . . . . . . . . . . 2 . 1 . . . . . . . 2 . . . 12 . . . 1 . . 1 Allies Hacked . | . . . . . . . . . . . . . . . . . . . . . . . . . . . . . . . . Hacks Repelled . | . . . . . . . . . . . . . . . . . . . . . . . . . . . . . . . . Allies | -11 -10 -10 -10 -9 -8 -7 -7 -7 -7 -7 -7 -6 -6 -6 -6 -6 -6 -6 -6 -5 -5 -5 -5 -5 -5 -5 -5 -4 -4 -4 -4 -------- Run | Scr Mat Min Exi Min Mat Fac Was Fac Low Low Dat Pro Fac Was Fac Low Low Zio Dee Pro Fac Was Fac Ext Cet Arc Hub Fac Upp Upp War Total Allies 38 | . . 5 . . . . . . . 2 . 2 . . 1 . . 2 . 2 1 . 4 17 . . . 1 . . 1 Largest Group 7 | . . 5 4 2 1 . . . . 2 2 3 . . 1 . . 2 2 2 1 . 3 7 4 2 1 1 . . 1 Highest-Rated Group 256 | . . 85 77 32 16 . . . . 48 48 142 . . 26 . . 49 49 59 29 . 90 256 256 63 32 49 . . 60 Highest-Rated Ally 156 | . . 31 31 16 16 . . . . 32 32 94 . . 26 . . 29 29 30 29 . 30 156 156 37 32 49 . . 60 Total Orders 9 | . . . . . . . . . . . . . . . 2 . . . . . . . . . . . 3 . 3 1 . GOTO 1 | . . . . . . . . . . . . . . . . . . . . . . . . . . . 1 . . . . EXPLORE 8 | . . . . . . . . . . . . . . . 2 . . . . . . . . . . . 2 . 3 1 . Ally Attacks 325 | . . 41 . 13 9 . . . . . . 40 . . . . . . 31 17 3 . 19 92 51 7 2 . . . . Total Damage 6076 | . . 540 . 126 118 . . . . . . 1148 . . . . . . 402 174 59 . 412 1890 1046 119 42 . . . . Kills 57 | . . 11 . 4 1 . . . . . . 10 . . . . . . 2 1 . . 1 18 8 1 . . . . . Allies Corrupted 2 | . . . . . . . . . . . . . . . . . . . . . . . . . . . . . . . 2 Allies Melted . | . . . . . . . . . . . . . . . . . . . . . . . . . . . . . . . . Intel | -11 -10 -10 -10 -9 -8 -7 -7 -7 -7 -7 -7 -6 -6 -6 -6 -6 -6 -6 -6 -5 -5 -5 -5 -5 -5 -5 -5 -4 -4 -4 -4 ------- Run | Scr Mat Min Exi Min Mat Fac Was Fac Low Low Dat Pro Fac Was Fac Low Low Zio Dee Pro Fac Was Fac Ext Cet Arc Hub Fac Upp Upp War Robot Analysis Total 17 | . 4 . . . 1 1 . . . . . . . . 1 . . . . . 1 . 3 2 . . 2 2 . . . Derelict Logs Recovered 14 | . . 2 . 1 . . . . 1 2 . 2 . . . 1 1 . . 1 . . . . . . . . 2 1 . Drone Launches 10 | . . . . . . . . . . . . . . . 2 . . . . . . . . . . . 2 . 3 3 . Drone Recoveries . | . . . . . . . . . . . . . . . . . . . . . . . . . . . . . . . . Exploration | -11 -10 -10 -10 -9 -8 -7 -7 -7 -7 -7 -7 -6 -6 -6 -6 -6 -6 -6 -6 -5 -5 -5 -5 -5 -5 -5 -5 -4 -4 -4 -4 ------------- Run | Scr Mat Min Exi Min Mat Fac Was Fac Low Low Dat Pro Fac Was Fac Low Low Zio Dee Pro Fac Was Fac Ext Cet Arc Hub Fac Upp Upp War Turns Passed 33784 | 79 490 794 825 379 846 999 68 1006 501 672 93 990 163 39 2008 854 1063 1993 9351 721 2095 57 1746 1413 533 137 955 969 454 625 866 Spaces Moved 22939 | 66 541 668 534 360 600 709 103 778 516 502 92 938 154 75 1465 793 693 1050 4547 538 1467 125 1151 993 354 83 600 692 509 506 737 Core 30 | 26 . . . . . . . . . . . . . . . . . . 3 . . . . . 1 . . . . . . Treads 5758 | . . 380 433 . . . . . . . . . . . . . 316 1050 3579 . . . . . . . . . . . . Legs 16410 | 40 88 . 101 360 600 709 103 778 516 502 92 938 154 75 1465 793 377 . 965 538 1467 125 1151 993 353 83 600 692 509 506 737 Wheels . | . . . . . . . . . . . . . . . . . . . . . . . . . . . . . . . . Hover 96 | . 96 . . . . . . . . . . . . . . . . . . . . . . . . . . . . . . Flight 645 | . 357 288 . . . . . . . . . . . . . . . . . . . . . . . . . . . . . Fastest Speed 37 | 50 37 37 90 90 45 90 45 90 90 90 90 90 90 45 45 90 90 170 45 90 45 45 45 45 45 90 45 90 45 90 45 Average Speed 111 | 92 53 106 146 90 89 90 63 90 90 90 90 90 90 48 89 90 135 186 165 90 88 45 89 89 90 90 87 90 88 90 106 Slowest Speed 400 | 120 120 160 160 90 90 90 90 90 90 90 90 90 90 90 90 90 190 190 400 90 90 90 90 90 250 90 90 90 90 90 130 Overloaded Moves 581 | . . . . . 3 . 61 . . . . . . 69 10 . . . 68 . 42 124 4 9 3 . 28 . 22 . 138 Propulsion Burnouts . | . . . . . . . . . . . . . . . . . . . . . . . . . . . . . . . . Robots Hopped 3 | . 1 2 . . . . . . . . . . . . . . . . . . . . . . . . . . . . . Cave-ins Triggered . | . . . . . . . . . . . . . . . . . . . . . . . . . . . . . . . . Exploration Rate (%) 66 | 4 97 98 71 82 56 24 76 25 64 71 71 90 6 69 42 89 80 86 93 67 47 81 35 83 80 76 78 21 89 73 93 Regions Visited 31 Branch Regions 19 Pre-discovered Areas 8 | . 1 1 1 . . . . . 1 . 1 . . . . . . 2 . 1 . . . . . . . . . . . Known Exits Taken 12 | . 1 . . . . . . 1 . 1 . 1 . . 1 1 1 . . 1 . . 1 1 . . . 1 1 . . Unknown Exits Taken 13 | 1 . 1 1 1 1 . . . 1 . 1 . . . . . . 1 1 . . . . . 1 1 1 . . 1 . Scrap Searched 31 | . . 2 . 1 . . . . 3 3 . 2 . . . 3 5 2 . 3 . . . . . . . . 3 4 . Spaces Dug 12 | . . . . . . . . . . . . . . . 3 2 . . . . 2 . . . . . . 4 . . 1 Terrain Destroyed 491 | . . . . . 28 2 . 3 8 1 . 6 2 . 38 18 3 . 138 17 124 . 19 24 9 2 21 10 . 15 3 Melee . | . . . . . . . . . . . . . . . . . . . . . . . . . . . . . . . . Projectile 251 | . . . . . 28 2 . 3 1 1 . 6 2 . 38 18 3 . 7 17 22 . 19 24 9 2 21 10 . 15 3 AOE 240 | . . . . . . . . . 7 . . . . . . . . . 131 . 102 . . . . . . . . . . Actions | -11 -10 -10 -10 -9 -8 -7 -7 -7 -7 -7 -7 -6 -6 -6 -6 -6 -6 -6 -6 -5 -5 -5 -5 -5 -5 -5 -5 -4 -4 -4 -4 --------- Run | Scr Mat Min Exi Min Mat Fac Was Fac Low Low Dat Pro Fac Was Fac Low Low Zio Dee Pro Fac Was Fac Ext Cet Arc Hub Fac Upp Upp War Total 29257 | 75 661 732 568 394 789 1010 104 1012 536 662 101 1042 166 76 1984 882 765 1082 6198 659 2066 125 1745 1397 499 125 925 940 514 618 805 Wait 3419 | . 43 46 24 7 24 225 . 127 1 50 9 44 4 . 337 42 16 13 948 17 408 . 446 171 57 17 190 104 2 47 . Move 22905 | 65 538 663 533 359 599 709 102 777 515 501 91 937 154 74 1464 792 692 1049 4546 537 1467 124 1150 992 353 82 599 691 508 505 737 Hop 3 | . 1 2 . . . . . . . . . . . . . . . . . . . . . . . . . . . . . Pick Up 207 | . 4 1 . 2 14 3 . 7 1 4 . 3 1 1 6 1 5 3 134 2 3 1 3 3 1 1 . 2 . . 1 Fast Attach 127 | 7 8 1 2 2 4 7 2 7 . 2 . 5 . . 6 . 4 2 27 . 9 . 9 2 10 . 2 1 1 . 7 Attach 29 | . . . . 1 2 2 . 1 1 . . . . 1 2 . 2 1 14 . 1 . . . . . . . . . 1 Detach 5 | . . . . . 1 1 . . . . . . . . . . . . 2 . . . . . . . . . . . 1 Swap 53 | . 1 . 1 2 2 1 . 6 . 2 1 1 . . 4 2 1 4 4 . 1 . 3 7 2 . 2 4 1 . 1 Drop 333 | . 8 2 2 1 18 9 . 14 . 7 . 6 1 . 9 1 8 6 185 2 11 . 10 4 11 1 2 5 1 . 9 Fire 1238 | 3 44 9 . 11 86 31 . 34 7 28 . 19 6 . 83 26 27 3 235 59 98 . 64 85 51 17 80 80 . 43 9 Melee 6 | . . . 6 . . . . . . . . . . . . . . . . . . . . . . . . . . . . Ram . | . . . . . . . . . . . . . . . . . . . . . . . . . . . . . . . . Kick 5 | . . . . . 1 . . . . . . . . . . . . . . . . . 2 . . . 1 . . . 1 Crush . | . . . . . . . . . . . . . . . . . . . . . . . . . . . . . . . . Escape Stasis . | . . . . . . . . . . . . . . . . . . . . . . . . . . . . . . . . Rewire 148 | . . . . . . . . . . 34 . 1 . . . . . . . 11 . . . 61 . . . 3 . . 38 Trap 14 | . . . . . . . . . . . . . . . . . . . 14 . . . . . . . . . . . . Miscellaneous 765 | . 14 8 . 9 38 22 . 39 11 34 . 26 . . 73 18 10 1 89 31 68 . 58 72 14 7 49 50 1 23 . Route ------- -11/Scrapyard -10/Materials (discovered 5 exits: [*Mat x3] / *Min x2) -10/Mines (discovered 3 exits: [*Mat x2] / *Exi) -10/Exiles (discovered 2 exits: [*Min x2]) -9/Mines (discovered 2 exits: *Mat x2) -8/Materials (discovered 2 exits: *Fac x2) -7/Factory (discovered 4 exits: *Fac / Sto / *Low x2) -7/Waste -7/Factory (discovered 5 exits: *Fac / *Sto x2 / *Low x2) -7/Lower Caves -7/Lower Caves (discovered 2 exits: *Fac / *Dat) -7/Data Miner -6/Proximity Caves -6/Factory (discovered 3 exits: *Fac x2 / Low) -6/Waste -6/Factory (discovered 5 exits: Fac x4 / *Low) -6/Lower Caves (discovered 2 exits: *Low / *Zio) -6/Lower Caves (discovered 2 exits: *Fac / *Zio) -6/Zion (discovered 2 exits: [*Dee] / [*Pro]) -6/Deep Caves -5/Proximity Caves -5/Factory (discovered 5 exits: *Fac / *Upp x2 / Ext x2) -5/Waste -5/Factory (discovered 6 exits: *Fac x2 / *Upp x2 / *Ext x2) -5/Extension (discovered 3 exits: *Fac x2 / *Cet) -5/Cetus (discovered 2 exits: *Fac / *Arc) -5/Archives (discovered 3 exits: *Fac / *Hub x2) -5/Hub_04(d) (discovered 3 exits: *Fac x3) -4/Factory (discovered 3 exits: Res / *Upp x2) -4/Upper Caves -4/Upper Caves (discovered 2 exits: *Res / *War) -4/Warlord History --------- Turn | Location | Event 7 | -11/Scrapyard | Discovered new exit (range 15) 15 | -11/Scrapyard | Upgraded with Propulsion slot (x1) 15 | -11/Scrapyard | Upgraded with Utility slot (x1) 15 | -11/Scrapyard | Upgraded with Weapon slot (x1) 80 | -11/Scrapyard | Entered Materials 111 | -10/Materials | Identified exit to Mines 122 | -10/Materials | Central database locked down 190 | -10/Materials | Discovered new exit (range 17) 313 | -10/Materials | Build established: Mutant 319 | -10/Materials | Repaired Lgt. Armor Plating 490 | -10/Materials | Discovered new exit (range 17) 499 | -10/Materials | Reached level 2 505 | -10/Materials | Upgraded with Utility slot (x1) 552 | -10/Materials | Discovered new exit (range 7) 570 | -10/Materials | Entered Mines 570 | -10/Mines | Discovered new exit (range 11) 572 | -10/Mines | Assisted by bots powering up and referring to "LRC-V3" 594 | -10/Mines | Learned Materials trap positions 715 | -10/Mines | Reached level 3 724 | -10/Mines | Build established: Scavenger-Mutant 874 | -10/Mines | Deemed a non-threat by the Exiles lab entrance 874 | -10/Mines | Discovered new exit (range 5) 1026 | -10/Mines | Build established: Hacker-Mutant 1028 | -10/Mines | Discovered new exit (range 7) 1224 | -10/Mines | Learned location of Storage (-7) 1239 | -10/Mines | Learned 2 Materials zone layouts 1364 | -10/Mines | Entered Exiles 1364 | -10/Exiles | Accompanied by 4 allies 1385 | -10/Exiles | Discovered new exit (range 15) 1394 | -10/Exiles | Led the pair of lost Derelicts to a safe place 1408 | -10/Exiles | Met 8R-AWN 1428 | -10/Exiles | Met EX-HEX 1492 | -10/Exiles | Met EX-DEC 1502 | -10/Exiles | Learned location of Zion (-6) 1539 | -10/Exiles | Met EX-BIN 1556 | -10/Exiles | Aligned with FarCom system 1558 | -10/Exiles | Given EX-Vault access code 1600 | -10/Exiles | Opened EX-Vault 1638 | -10/Exiles | Warned to stay clear of 0b10 Research branches 2071 | -10/Exiles | Found Potential Leg 2074 | -10/Exiles | Found Potential Leg 2155 | -10/Exiles | Discovered new exit (range 11) 2189 | -10/Exiles | Left Exiles lab with Potential Leg 2189 | -10/Exiles | Entered Mines 2189 | -9/Mines | Accompanied by 2 allies 2191 | -9/Mines | Reached level 4 2193 | -9/Mines | Upgraded with Power slot (x1) 2193 | -9/Mines | Upgraded with Utility slot (x2) 2210 | -9/Mines | Assembled infested the area 2215 | -9/Mines | Assisted by a Guerilla fighting off Assembled 2287 | -9/Mines | Discovered new exit (range 10) 2429 | -9/Mines | Received a Rocket Launcher from a helpful Derelict 2527 | -9/Mines | Learned location of 1 exit from Proximity Caves 2552 | -9/Mines | Discovered new exit (range 10) 2568 | -9/Mines | Entered Materials 2568 | -8/Materials | Accompanied by 1 ally 2570 | -8/Materials | Loaded intel: 24 trap records 2570 | -8/Materials | Reached level 5 2607 | -8/Materials | Garrison activated, responded to threat 2631 | -8/Materials | Reached level 6 3041 | -8/Materials | Discovered new exit (range 16) 3058 | -8/Materials | Reached level 7 3063 | -8/Materials | Upgraded with Utility slot (x1) 3122 | -8/Materials | Build established: Hacker-Skirmisher 3327 | -8/Materials | Discovered new exit (range 9) 3368 | -8/Materials | First assault squad dispatched 3414 | -8/Materials | Entered Factory 3416 | -7/Factory | Reached level 8 3417 | -7/Factory | Upgraded with Weapon slot (x1) 3637 | -7/Factory | Reached level 9 3687 | -7/Factory | Discovered new exit (range 9) 3715 | -7/Factory | Upgraded with Utility slot (x1) 4149 | -7/Factory | Build established: Scavenger-Skirmisher 4178 | -7/Factory | Fabricated Hvy. Plasma Cannon (x2) 4206 | -7/Factory | Identified exit to Storage 4206 | -7/Factory | Identified exit to Lower Caves 4272 | -7/Factory | Reached level 10 4411 | -7/Factory | Discovered new exit (range 17) 4413 | -7/Factory | Sucked down chute 4413 | -7/Factory | Entered Waste 4441 | -7/Waste | Spotted C-40 Crusher 4446 | -7/Waste | Spotted C-40 Crusher 4447 | -7/Waste | Spotted C-40 Crusher 4452 | -7/Waste | Crushed by Compactor (1 part destroyed, 1 dropped) 4453 | -7/Waste | Spotted C-40 Crusher 4453 | -7/Waste | Spotted C-40 Crusher 4455 | -7/Waste | Crushed by Compactor (1 part destroyed, 1 dropped) 4468 | -7/Waste | Discovered new exit (range 16) 4469 | -7/Waste | Spotted C-40 Crusher 4481 | -7/Waste | Entered Factory 4827 | -7/Factory | Build established: Hacker-Skirmisher 4855 | -7/Factory | Fabricated Enh. Gauss Cannon? 5194 | -7/Factory | Discovered new exit (range 15) 5207 | -7/Factory | Reached level 11 5487 | -7/Factory | Entered Lower Caves 5491 | -7/Lower Caves | Reached level 12 5498 | -7/Lower Caves | Upgraded with Utility slot (x1) 5533 | -7/Lower Caves | Encountered a Warlord checkpoint 5633 | -7/Lower Caves | Build established: Scavenger-Gunner 5763 | -7/Lower Caves | Discovered new exit (range 13) 5988 | -7/Lower Caves | Entered another Lower Caves area 5991 | -7/Lower Caves | Discovered new exit (range 13) 6118 | -7/Lower Caves | Attracted the attention of an 0b10 outpost 6202 | -7/Lower Caves | Reached level 13 6203 | -7/Lower Caves | Core integrity fell below 50% 6359 | -7/Lower Caves | Learned location of 2 exits from Factory 6376 | -7/Lower Caves | Identified exit to Data Miner 6418 | -7/Lower Caves | Attracted the attention of an 0b10 checkpoint 6455 | -7/Lower Caves | Encountered a Warlord checkpoint 6660 | -7/Lower Caves | Entered Data Miner 6660 | -7/Data Miner | Accompanied by 2 allies 6662 | -7/Data Miner | Discovered new exit (range 6) 6678 | -7/Data Miner | Met Data Miner 6702 | -7/Data Miner | Learned location of Section 7 (-2) 6702 | -7/Data Miner | Acquired the access code to Warlord's prototype stash 6717 | -7/Data Miner | Received God Mode back door access code from Data Miner 6753 | -7/Data Miner | Upgraded with Utility slot (x1) 6753 | -7/Data Miner | Entered Proximity Caves 6753 | -6/Proximity Caves | Accompanied by 2 allies 6754 | -6/Proximity Caves | Identified exit to Factory 6755 | -6/Proximity Caves | Reached level 14 6843 | -6/Proximity Caves | Learned Factory terminal intel 6866 | -6/Proximity Caves | Escorted by Enhanced Grunt 7087 | -6/Proximity Caves | Learned 4 Factory zone layouts 7173 | -6/Proximity Caves | Reached level 15 7369 | -6/Proximity Caves | Upgraded with Utility slot (x1) 7628 | -6/Proximity Caves | Attracted the attention of an 0b10 checkpoint 7660 | -6/Proximity Caves | Found Prototype Device 7660 | -6/Proximity Caves | Identified Exp. Thermal Shield 7743 | -6/Proximity Caves | Entered Factory 7744 | -6/Factory | Identified exit to Lower Caves 7744 | -6/Factory | Identified exit to Factory 7745 | -6/Factory | Reached level 16 7746 | -6/Factory | Loaded intel: 20 terminal locations 7905 | -6/Factory | Discovered exit to Factory (range 15) 7906 | -6/Factory | Sucked down chute 7906 | -6/Factory | Entered Waste 7908 | -6/Waste | Reached level 17 7914 | -6/Waste | Spotted C-40 Crusher 7918 | -6/Waste | Spotted C-40 Crusher 7921 | -6/Waste | EMP discharged 7925 | -6/Waste | Spotted C-40 Crusher 7929 | -6/Waste | Spotted C-40 Crusher 7929 | -6/Waste | Spotted C-40 Crusher 7929 | -6/Waste | Crushed by Compactor (1 part destroyed, 1 dropped) 7934 | -6/Waste | Discovered new exit (range 17) 7945 | -6/Waste | Entered Factory 8112 | -6/Factory | Upgraded with Utility slot (x1) 8219 | -6/Factory | Incoming investigation squad redirected 8273 | -6/Factory | Fabricated Lgt. Regenerative Plating (x1) 8596 | -6/Factory | Fabricated Arm. Heavy Treads (x2) 8673 | -6/Factory | Reached level 18 8746 | -6/Factory | Local fabrication network quarantined 8749 | -6/Factory | Incoming investigation squad redirected 8995 | -6/Factory | First assault squad dispatched 9012 | -6/Factory | Incoming assault squad redirected 9017 | -6/Factory | Incoming assault squad redirected 9118 | -6/Factory | Incoming assault squad redirected 9342 | -6/Factory | Spotted B-75 Beast 9353 | -6/Factory | Destroyed B-75 Beast 9458 | -6/Factory | Reached level 19 9618 | -6/Factory | Incoming investigation squad redirected 9720 | -6/Factory | Incoming assault squad redirected 9771 | -6/Factory | Discovered exit to Lower Caves (range 15) 9953 | -6/Factory | Entered Lower Caves 10321 | -6/Lower Caves | Encountered a Warlord checkpoint 10505 | -6/Lower Caves | Identified exit to Lower Caves 10575 | -6/Lower Caves | Attacked by a delusional Derelict stockpiling parts 10762 | -6/Lower Caves | A Derelict revealed a hidden shortcut to a safe place 10807 | -6/Lower Caves | Entered another Lower Caves area 10807 | -6/Lower Caves | Discovered exit to Factory (range 17) 10845 | -6/Lower Caves | Learned Factory trap positions 10845 | -6/Lower Caves | Learned Research trap positions 11003 | -6/Lower Caves | Found Imp. Powered Armor 11180 | -6/Lower Caves | Identified exit to Zion 11196 | -6/Lower Caves | Reached level 20 11212 | -6/Lower Caves | Upgraded with Utility slot (x1) 11236 | -6/Lower Caves | Attracted the attention of an 0b10 checkpoint 11297 | -6/Lower Caves | Build established: Scavenger-Mutant 11419 | -6/Lower Caves | Encountered a Warlord checkpoint 11870 | -6/Lower Caves | Entered Zion 11988 | -6/Zion | Discovered new exit (range 16) 12186 | -6/Zion | Learned location of Warlord (-4) 12316 | -6/Zion | Found Prototype Launcher 12317 | -6/Zion | Identified Rocket Array 12453 | -6/Zion | Learned location of Armory (-3) 12554 | -6/Zion | Rebuked by Imprinter 12670 | -6/Zion | Given A8's code to call for help 12801 | -6/Zion | Gained Derelict followers 13008 | -6/Zion | Received a hallucinogenic algorithm 13233 | -6/Zion | Discovered new exit (range 16) 13670 | -6/Zion | Found Prototype Device 13852 | -6/Zion | Saw the warning signs outside the Deep Caves entrance 13863 | -6/Zion | Entered Deep Caves 13863 | -6/Deep Caves | Accompanied by 2 allies 14212 | -6/Deep Caves | Attacked by Z-Imprinter 14235 | -6/Deep Caves | Core integrity fell below 50% 14253 | -6/Deep Caves | Destroyed Z-Imprinter 14291 | -6/Deep Caves | Found Prototype Device 14291 | -6/Deep Caves | Identified Zio. Metafield Generator 14353 | -6/Deep Caves | Identified Bomb Factory No. 2 14892 | -6/Deep Caves | Found Prototype Protection 14907 | -6/Deep Caves | Found Prototype Protection 14911 | -6/Deep Caves | Found Prototype Protection 15260 | -6/Deep Caves | Z-Facility disabled 15359 | -6/Deep Caves | Found Prototype Protection 15366 | -6/Deep Caves | Found Prototype Protection 15564 | -6/Deep Caves | Found Prototype Protection 15588 | -6/Deep Caves | Found Prototype Protection 15737 | -6/Deep Caves | Found Prototype Protection 15774 | -6/Deep Caves | Found Prototype Protection 15907 | -6/Deep Caves | Identified Zio. Weapon Casing 18251 | -6/Deep Caves | Discovered new exit (range 7) 19824 | -6/Deep Caves | Found Zio. Weapon Casing 20119 | -6/Deep Caves | Found Zio. Weapon Casing 20388 | -6/Deep Caves | Identified Zio. Heavy Carapace 20624 | -6/Deep Caves | Spotted as-73595 20628 | -6/Deep Caves | Exposed GOLEM chamber 20669 | -6/Deep Caves | Destroyed as-73595 21078 | -6/Deep Caves | Triggered Deep Caves wall 21145 | -6/Deep Caves | Destroyed 34 combat bots 21153 | -6/Deep Caves | Spotted AS-68794 21180 | -6/Deep Caves | Spotted AS-56708 21191 | -6/Deep Caves | Destroyed AS-68794 21204 | -6/Deep Caves | Destroyed AS-56708 21218 | -6/Deep Caves | Triggered Deep Caves wall 21220 | -6/Deep Caves | Spotted as-49007 21247 | -6/Deep Caves | Found GOLEM Unit 21823 | -6/Deep Caves | Destroyed as-49007 22641 | -6/Deep Caves | Found GOLEM Unit 23214 | -6/Deep Caves | Entered Proximity Caves 23216 | -5/Proximity Caves | Reached level 21 23329 | -5/Proximity Caves | Spotted B-75 Beast 23351 | -5/Proximity Caves | Destroyed B-75 Beast 23657 | -5/Proximity Caves | Attracted the attention of an 0b10 outpost 23837 | -5/Proximity Caves | Reached level 22 23898 | -5/Proximity Caves | Discovered exit to Factory (range 5) 23935 | -5/Proximity Caves | Entered Factory 23935 | -5/Factory | Accompanied by 1 ally 23936 | -5/Factory | Loaded intel: 126 trap records 24097 | -5/Factory | Build established: Mutant 24252 | -5/Factory | Fabricated System Backup Module (x2) 24781 | -5/Factory | Spotted B-75 Beast 24835 | -5/Factory | First assault squad dispatched 24857 | -5/Factory | Incoming assault squad redirected 24895 | -5/Factory | Reached level 23 24900 | -5/Factory | Upgraded with Utility slot (x1) 25019 | -5/Factory | Identified exit to Upper Caves 25019 | -5/Factory | Identified exit to Extension 25077 | -5/Factory | Discovered new exit (range 17) 25157 | -5/Factory | Incoming assault squad redirected 25206 | -5/Factory | Build established: Scavenger-Mutant 25756 | -5/Factory | Incoming assault squad redirected 26030 | -5/Factory | Sucked down chute 26030 | -5/Factory | Entered Waste 26056 | -5/Waste | Spotted C-40 Crusher 26058 | -5/Waste | Spotted C-40 Crusher 26058 | -5/Waste | Spotted C-40 Crusher 26063 | -5/Waste | Spotted C-40 Crusher 26068 | -5/Waste | Spotted C-40 Crusher 26074 | -5/Waste | Spotted C-40 Crusher 26083 | -5/Waste | Discovered new exit (range 11) 26087 | -5/Waste | Entered Factory 26112 | -5/Factory | Found Prototype Processor 26112 | -5/Factory | Identified Exp. Signal Interpreter 26404 | -5/Factory | Build established: Tank 26691 | -5/Factory | Discovered new exit (range 7) 26907 | -5/Factory | Reached level 24 26987 | -5/Factory | First assault squad dispatched 27092 | -5/Factory | Fabricated Adv. Weapon Cycler (x2) 27275 | -5/Factory | Local fabrication network quarantined 27324 | -5/Factory | Fabricated B-60 Warrior? 27331 | -5/Factory | Discovered new exit (range 16) 27397 | -5/Factory | Build established: Gunner 27457 | -5/Factory | Incoming assault squad redirected 27616 | -5/Factory | Incoming assault squad redirected 27833 | -5/Factory | Entered Extension 27944 | -5/Extension | Incoming investigation squad redirected 28027 | -5/Extension | Rescued a captive Derelict 28028 | -5/Extension | Rescued a captive Derelict 28225 | -5/Extension | Rescued a captive Derelict 28228 | -5/Extension | Spotted B-75 Beast 28237 | -5/Extension | Spotted B-75 Beast 28253 | -5/Extension | Allies destroyed B-75 Beast 28278 | -5/Extension | Destroyed B-75 Beast 28367 | -5/Extension | Discovered new exit (range 3) 28515 | -5/Extension | Incoming investigation squad redirected 28537 | -5/Extension | Build established: Scavenger-Gunner 28641 | -5/Extension | Identified exit to Cetus 28677 | -5/Extension | Discovered new exit (range 10) 28684 | -5/Extension | Reached level 25 28933 | -5/Extension | Rescued A7 28977 | -5/Extension | Build established: Gunner 29108 | -5/Extension | Disrupted transfer network 29246 | -5/Extension | Entered Cetus 29246 | -5/Cetus | Accompanied by 4 allies 29251 | -5/Cetus | Acquired a Cetus Manufacturing Module code from A7 29261 | -5/Cetus | Spotted Cetus Guard 29261 | -5/Cetus | Spotted Cetus Guard 29263 | -5/Cetus | Destroyed Cetus Guard 29263 | -5/Cetus | Spotted Cetus Guard 29265 | -5/Cetus | Allies destroyed Cetus Guard 29266 | -5/Cetus | Spotted Cetus Guard 29267 | -5/Cetus | Allies destroyed Cetus Guard 29275 | -5/Cetus | Allies destroyed Cetus Guard 29325 | -5/Cetus | Cetus Manufacturing Module disabled 29361 | -5/Cetus | Failed to start Cetus Manufacturing Module 29370 | -5/Cetus | Escorted A7 to Cetus Mainframe 29448 | -5/Cetus | Discovered new exit (range 16) 29467 | -5/Cetus | Spotted Cetus Guard 29467 | -5/Cetus | Spotted Cetus Guard 29470 | -5/Cetus | Spotted Cetus Guard 29474 | -5/Cetus | Destroyed Cetus Guard 29481 | -5/Cetus | Allies destroyed Cetus Guard 29481 | -5/Cetus | Spotted Cetus Guard 29481 | -5/Cetus | Allies destroyed Cetus Guard 29483 | -5/Cetus | Allies destroyed Cetus Guard 29489 | -5/Cetus | Discovered new exit (range 16) 29502 | -5/Cetus | Met Revision 17 29576 | -5/Cetus | Build established: Scavenger-Mutant 29619 | -5/Cetus | P-70 Sage assimilated allied UA-GWF(h) 29748 | -5/Cetus | Destroyed A7 29751 | -5/Cetus | Extracted ID and sensor layout for unrecognized location from A7's data core 29761 | -5/Cetus | Found Prototype Protection 29761 | -5/Cetus | Identified Med. Regenerative Plating 29779 | -5/Cetus | Entered Archives 29779 | -5/Archives | Accompanied by 2 allies 29834 | -5/Archives | Unable to access archive contents 29838 | -5/Archives | Discovered new exit (range 17) 29851 | -5/Archives | Discovered new exit (range 17) 29876 | -5/Archives | Discovered new exit (range 16) 29916 | -5/Archives | Entered Hub_04(d) 29916 | -5/Hub_04(d) | Accompanied by 1 ally 29949 | -5/Hub_04(d) | Spotted B-75 Beast 29955 | -5/Hub_04(d) | Destroyed B-75 Beast 30071 | -5/Hub_04(d) | Discovered new exit (range 3) 30461 | -5/Hub_04(d) | Discovered new exit (range 31) 30491 | -5/Hub_04(d) | Discovered new exit (range 64) 30635 | -5/Hub_04(d) | Garrison activated, responded to threat 30723 | -5/Hub_04(d) | Incoming assault squad redirected 30851 | -5/Hub_04(d) | Network Hub disabled 30851 | -5/Hub_04(d) | Network Hub disabled 30851 | -5/Hub_04(d) | Network Hub disabled 30871 | -5/Hub_04(d) | Entered Factory 30872 | -4/Factory | Identified exit to Research 30873 | -4/Factory | Reached level 26 30989 | -4/Factory | Identified exit to Upper Caves 31286 | -4/Factory | Central database locked down 31303 | -4/Factory | Incoming investigation squad redirected 31411 | -4/Factory | Spotted B-86 Titan 31423 | -4/Factory | Destroyed B-86 Titan 31548 | -4/Factory | Fabricated Adv. Shield Generator (x2) 31595 | -4/Factory | Fabricated Beam Splitter? 31630 | -4/Factory | Fabricated Exp. ECM Suite? 31665 | -4/Factory | Incoming investigation squad redirected 31840 | -4/Factory | Entered Upper Caves 31950 | -4/Upper Caves | Encountered a Warlord checkpoint 31957 | -4/Upper Caves | Identified exit to Upper Caves 32015 | -4/Upper Caves | Learned 4 Research zone layouts 32083 | -4/Upper Caves | Build established: Scavenger-Gunner 32276 | -4/Upper Caves | Attracted the attention of an 0b10 checkpoint 32294 | -4/Upper Caves | Entered another Upper Caves area 32309 | -4/Upper Caves | Ambushed by wild Derelicts 32346 | -4/Upper Caves | Discovered exit to Research (range 5) 32651 | -4/Upper Caves | Attracted the attention of an 0b10 checkpoint 32671 | -4/Upper Caves | Learned Research stockpile data 32731 | -4/Upper Caves | Spotted B-86 Titan 32744 | -4/Upper Caves | Destroyed B-86 Titan 32821 | -4/Upper Caves | Discovered new exit (range 15) 32861 | -4/Upper Caves | Reached level 27 32882 | -4/Upper Caves | Upgraded with Utility slot (x1) 32919 | -4/Upper Caves | Entered Warlord 32919 | -4/Warlord | Accompanied by 2 allies 33047 | -4/Warlord | Build established: Scavenger-Mutant 33125 | -4/Warlord | Met Warlord 33135 | -4/Warlord | Opened Warlord's prototype stash 33138 | -4/Warlord | Found Prototype Reactor 33138 | -4/Warlord | Identified Vortex Chain Reactor 33140 | -4/Warlord | Warlord's base attacked by MAIN.C 33142 | -4/Warlord | Found Prototype Device 33142 | -4/Warlord | Identified Exp. Cloaking Device 33150 | -4/Warlord | Found Prototype Processor 33150 | -4/Warlord | Identified Exp. Armor Integrity Analyzer 33158 | -4/Warlord | Found Prototype Hackware 33437 | -4/Warlord | Build established: Mutant 33438 | -4/Warlord | Found Prototype Energy Gun 33438 | -4/Warlord | Identified Vortex Rifle 33490 | -4/Warlord | Warlord forces counterattacked 33662 | -4/Warlord | Spotted B-86 Titan 33670 | -4/Warlord | Destroyed B-86 Titan 33672 | -4/Warlord | Spotted B-90 Cyclops 33674 | -4/Warlord | Spotted Executioner 33718 | -4/Warlord | Spotted Executioner 33731 | -4/Warlord | Core integrity fell below 50% 33751 | -4/Warlord | Core integrity fell below 20% 33753 | -4/Warlord | Build established: Gunner 33758 | -4/Warlord | Opened side exit 33763 | -4/Warlord | Spotted Striker 33769 | -4/Warlord | Identified Ghost Barrier 33783 | -4/Warlord | Spotted B-90 Cyclops 33785 | -4/Warlord | Destroyed by H-88 Terminator with KE Penetrator Last Messages --------------- Sealed Heavy Doors opened. 33748_ Slug penetrates Wall. 33748_ Penetrated by Slug. 33758_ The tunnel wall slides away. 33769_ Identified Ghost Barrier. 33771_ Dropped Force Rifle. 33771_ Knocked back. 33777_ Slammed into S-27 Virus. 33777_ Destroyed VTOL Module. 33777_ S-27 Virus system corrupted by crushing effect. 33777_ S-27 Virus knocked back. 33777_ Penetrated by Slug. 33777_ Critical hit. 33777_ Penetrated by Slug. 33778_ S-27 Virus system terminally corrupted. 33780_ Acquired 5 matter. 33781_ Slug penetrates Wall. 33782_ Penetrated by Slug. 33782_ Acquired 3 matter. 33784_ Slug penetrates Wall. Map ----- +----------------------------------------------------+ | ?????????????????????????????? | | ?????????????????????????????? | | ?????????????????????????????? | | ?????????????????????????????? | | ?????????????????????????????? | | ?????????????????????????????? | | ?????????????????????????????? | | ?????????????????????????????? | | ?????????????????????????????? | | ?????????????????????????????? | | ????????????????????? ??????? | | ???????????????????? ?????? | | ???????????????????? %?????? | | ????????????????????? ?????? | | ????????????????????? ?????? | | ??????????# ?????#??? ;#????? | | ??????????# ??### ??? ;;????? | | ??????????? ?? ??? ###?? | | ???????????? ### ???# ##? | | ????????????? =% ???# ?? | | ??????????????# #??? ?? | | ??????????????# ??? #?? | | ???????????????# ##?? #?? | | ????????????????# #?? ##? | | #????????????????# ##?# #? | | ############??????# ###@ #?? | | """""""""""#???????# # ##?? | | """""""""""#?####?## =*% ##??? | | ### ### %= "##?? | | + #;=% "#?? | | / ###;% "#?? | | #### ####;% ##?? | | """""""""""#??## #?# ; ##?? | | """""""""""#???# #?### #?? | | ############???# ####=# #?? | | #??????????????# #?#*%! % #?? | | ?????????????## ### #?? | | ?????????????# ### ##?? | | ????????????## ##?# #??? | | ????????????# #??## % ##??? | | ????????????# ????## #???? | | ????????????#%=#?????# % #???? | | ???????????## #?????##* ##??? | | ???????????#"% ##????## #??? | | ??????????## ##??## #### | | ??????????# ##?# " | | ??????##### ## ### " | | ?????## # ####[ ## #### | | ?????# #?## ## #??? | | ?????# ##?# ## ##??? | +----------------------------------------------------+ Best States ------------- Heat Dissipation 106 Coolant Potential 100 Energy Generation 70 Energy Capacity 1700 Matter Stores 300 Matter Capacity 300 Sight Range 17 Terrain Scan Range 16 Terrain Scan Density 310 Power Amplification 30 Additional Mass Support 20 Armor Coverage 1750 Resistance: KI 15 Resistance: TH 75 Resistance: EX 15 Resistance: EM 15 Resistance: I 15 Resistance: S 15 Resistance: P 15 Weapon Cycling 25 Phase Shifting 15 Evasion (%) 66 Targeting Accuracy 8 Target Analysis 6 Core Analysis 10 Armor Integrity Analysis 90 Recoil Reduction 2 Matter Filtering 30 Particle Charging 25 Overload Amplification 75 Salvage Targeting 4 Offensive Hacking 25 Defensive Hacking 25 Item Schematics ----------------- Gauss Rifle | -8/Materials | Scanalyzed Datajack | -8/Materials | Scanalyzed Hrd. Medium Armor Plating | -8/Materials | Scanalyzed Hvy. Plasma Cannon | -7/Factory | Scanalyzed Imp. Force Booster | -7/Factory | Downloaded System Backup Module | -7/Factory | Scanalyzed Enh. Gauss Cannon | -7/Factory | Scanalyzed Imp. Shield Generator | -7/Factory | Scanalyzed Med. Reactive Plating | -7/Factory | Scanalyzed Combat Drone Bay | -7/Data Miner | Free Lgt. Regenerative Plating | -7/Data Miner | Free Exp. Cesium-ion Thruster | -7/Data Miner | Free Exp. Targeting Computer | -7/Data Miner | Free Tactical Coordination Suite | -7/Data Miner | Free Exp. ECM Suite | -7/Data Miner | Free Imp. Energy Well | -6/Factory | Scanalyzed Exp. Thermal Shield | -6/Factory | Scanalyzed Gyrokinetic Inverter | -6/Factory | Hacked Arm. Heavy Treads | -6/Factory | Scanalyzed Adv. Weapon Cycler | -5/Factory | Hacked Adv. Core Analyzer | -5/Factory | Hacked Imp. Overload Amplifier | -5/Factory | Scanalyzed Adv. Particle Charger | -5/Factory | Scanalyzed Hyp. Gauss Cannon | -5/Extension | Hacked KE Penetrator | -5/Extension | Hacked Adv. Shield Generator | -4/Factory | Hacked Beam Splitter | -4/Factory | Downloaded Robot Schematics ------------------ O-24 Administrator | -7/Factory | Hacked S-27 Virus | -7/Data Miner | Free G-50 Soldier | -7/Data Miner | Free L-41 Fighter | -7/Data Miner | Free X-72 Disruptor | -7/Data Miner | Free H-66 Slayer | -7/Data Miner | Free P-70 Sage | -7/Data Miner | Free I-36 Angel | -7/Data Miner | Free Fabricated ------------ Hvy. Plasma Cannon | x2 | -7/Factory | Preloaded Enh. Gauss Cannon | x2 | -7/Factory | Preloaded Lgt. Regenerative Plating | x1 | -6/Factory Arm. Heavy Treads | x2 | -6/Factory | Preloaded System Backup Module | x2 | -5/Factory Adv. Weapon Cycler | x2 | -5/Factory B-60 Warrior | x3 | -5/Factory | Preloaded Adv. Shield Generator | x2 | -4/Factory Beam Splitter | x1 | -4/Factory | Preloaded Exp. ECM Suite | x1 | -4/Factory Alien Tech Used ----------------- None Achievements -------------- None Challenges ------------ None RPGLIKE | -11 -10 -10 -10 -9 -8 -7 -7 -7 -7 -7 -7 -6 -6 -6 -6 -6 -6 -6 -6 -5 -5 -5 -5 -5 -5 -5 -5 -4 -4 -4 -4 --------- Run | Scr Mat Min Exi Min Mat Fac Was Fac Low Low Dat Pro Fac Was Fac Low Low Zio Dee Pro Fac Was Fac Ext Cet Arc Hub Fac Upp Upp War Levels Raised 26 | . 1 1 . 1 3 3 . 1 1 1 . 2 1 1 2 . 1 . . 2 1 . 1 1 . . . 1 . 1 . XP Earned 42229 | 3000 1580 2388 350 1305 4782 3355 200 1860 1000 1405 650 3301 1755 200 3264 666 513 152 1114 1735 2560 46 794 1207 428 119 625 1216 118 323 218 XP Spent 41960 | 2950 1550 . . 3000 4450 3040 . . 2300 . 2600 2900 . . 4450 . 3500 . 760 360 3800 . . 2200 . . . . . 4100 . Upgrades 51 | 11 2 . . 3 8 4 . . 1 . 1 1 . . 2 . 1 . 10 2 1 . . 3 . . . . . 1 . Power Slot 1 | . . . . 1 . . . . . . . . . . . . . . . . . . . . . . . . . . . Propulsion Slot 1 | 1 . . . . . . . . . . . . . . . . . . . . . . . . . . . . . . . Utility Slot 13 | 1 1 . . 2 1 1 . . 1 . 1 1 . . 1 . 1 . . . 1 . . . . . . . . 1 . Weapon Slot 2 | 1 . . . . . 1 . . . . . . . . . . . . . . . . . . . . . . . . . Core Integrity 8 | . . . . . . . . . . . . . . . . . . . 8 . . . . . . . . . . . . Heat Dissipation 8 | 1 . . . . 2 1 . . . . . . . . . . . . 2 2 . . . . . . . . . . . Mass Support 1 | 1 . . . . . . . . . . . . . . . . . . . . . . . . . . . . . . . Inventory Capacity 6 | 2 1 . . . 1 . . . . . . . . . 1 . . . . . . . . 1 . . . . . . . Sight Range 1 | 1 . . . . . . . . . . . . . . . . . . . . . . . . . . . . . . . Terrain Scan Density 3 | 1 . . . . 1 1 . . . . . . . . . . . . . . . . . . . . . . . . . Ranged Accuracy 3 | . . . . . 3 . . . . . . . . . . . . . . . . . . . . . . . . . . Hack Attack % 1 | 1 . . . . . . . . . . . . . . . . . . . . . . . . . . . . . . . Hack Defense % 1 | 1 . . . . . . . . . . . . . . . . . . . . . . . . . . . . . . . TH Damage % 2 | . . . . . . . . . . . . . . . . . . . . . . . . 2 . . . . . . . Protomatter Created 7009 | . 92 48 . 11 312 153 . 383 95 176 . 192 . . 638 189 169 . 988 266 451 . 478 753 134 150 532 512 . 205 82 Integrity Restored 14984 | . 267 138 . 150 702 415 . 801 224 685 . 483 . . 1330 326 169 14 1950 626 1467 . 1104 1368 250 133 939 972 . 471 . Core 9608 | . 197 87 . 76 480 201 . 539 121 477 . 294 . . 769 226 118 . 1351 520 1035 . 476 892 119 67 606 599 . 358 . Parts 5376 | . 70 51 . 74 222 214 . 262 103 208 . 189 . . 561 100 51 14 599 106 432 . 628 476 131 66 333 373 . 113 . Protomatter Decayed 3680 | . . 49 . 17 14 62 . 53 . 17 . 193 . . 208 29 330 64 390 51 5 . 97 499 40 74 248 249 15 44 932 Game ------ Seed CryofiberNeutrinoPropulsion Manual? 0 Play Time 06:20:57 Cumulative 209.7 hours Start 2020.09.07 @ 01:06:08 End 2020.09.08 @ 13:19:51 Sessions 9 Manual Loads 0 Difficulty Rogue Special Mode Winter2019/RPGLIKE Game No. 82 Rogue 82 Adventurer 0 Explorer 0 Win Type - Total 3 Types 2/0/0/1/0/0/0 Lore% 82 Gallery% 77 Achievement% 68 Wizard Run 0 Options --------- ASCII 0 Keyboard 0 Movement Numpad Keybinds 0 Fullscreen 1 Font 18/SmallcapsGlow Map View 76x50 Tactical HUD 1 Map Filters NONE Filters NONE Steam 1 RUN: 823d9b73-49f2-4213-8ce3-0d8db9381658